Cogmind - Beta 15 @@@ ROGUE MODE // 2025.07.26 @ 15:05:52 // Winter2019/RPGLIKE Player: Luminiferous Result: Defending 0bPrime! Performance ------------- Evolutions (7) 3500 Regions Visited (26) 5200 Robots Destroyed (958) 4790 Value Destroyed (55606) 55606 Prototype IDs (207) 4140 Alien Tech Used (4) 800 Bonus (47729) 47729 TOTAL SCORE: 121765 Bonus ------- High Alert Combat Kills 29388 Follower Combat Kills 1158 Registered with UFD 300 Met Optimus in HQ 500 Met Imprinter 300 Met Zhirov 300 Met Warlord at Base 500 MAIN.C Attacked Warlord 500 Warlord Defense Kills 566 Used Core Reset Matrix 3000 Met Optimus at Protoforge 1000 Completed Drillbomb Mission10000 Win 3000 Friendly Fire -2783 Cogmind --------- Core Integrity 952/1000 Matter 1050/1050 Energy 625/625 System Corruption 16% Temperature Cool (0) Movement Hovering (36) Location 0bPrime Parts ------- > --- POWER (3) -------- Fusion Reactor Light Particle Reactor Improved Quantum Reactor > --- PROPULSION (7) --- Experimental Antigrav System Experimental Antigrav System Experimental Antigrav System Experimental Antigrav System Concept Combat Aerolev Unit Concept Combat Aerolev Unit Concept Gyrokinetic System > --- UTILITY (12) ----- Concept NT7 Matterbank Experimental Optical Array Experimental Active Sensor Suite Femtoactuators (fused) Advanced Actuator Array Experimental Reaction Control System Advanced Phase Shifter Powered Armor Graphene Brace A0-MCA's Component Scanner Concept Matter Streamer > --- WEAPON (4) ------- Concept Smart ZDS (fused) Experimental Jetlance Experimental Jetlance Experimental Jetlance > --- INVENTORY (5) ---- Concept Smart ZDS Vibroblade Peak State ------------ > --- POWER ------------ Fusion Reactor Light Particle Reactor Improved Quantum Reactor > --- PROPULSION ------- Experimental Antigrav System Experimental Antigrav System Experimental Antigrav System Experimental Antigrav System Concept Combat Aerolev Unit Concept Combat Aerolev Unit Concept Gyrokinetic System > --- UTILITY ---------- Concept NT7 Matterbank Experimental Optical Array Experimental Active Sensor Suite Femtoactuators Advanced Actuator Array Experimental Reaction Control System Advanced Phase Shifter Powered Armor Graphene Brace A0-MCA's Component Scanner Concept Matter Streamer > --- WEAPON ----------- Concept Smart ZDS Experimental Jetlance Experimental Jetlance Experimental Jetlance > --- INVENTORY -------- Protomatter Protomatter Protomatter Concept Smart ZDS Vibroblade [Rating: 247] Favorites ----------- Power Improved Quantum Reactor Engine Cooled Ion Engine Power Core Light Nuclear Core Reactor Improved Quantum Reactor Propulsion Improved Hover Unit Treads Spiked Heavy Treads Leg Multireflex Exoskeleton Wheel Wheel Hover Unit Improved Hover Unit Flight Unit Cooled Q-thruster Utility A0-MCA's Component Scanner Device Deep Structural Scanner Storage Concept NT7 Matterbank Processor A0-MCA's Component Scanner Protection Improved Light Armor Plating Weapon Force Lance Energy Gun Medium Laser Energy Cannon Ion Cannon Ballistic Gun Concept XC Strikerail Ballistic Cannon Heavy Flak Cannon Launcher Concept Smart ZDS Special Weapon Remote Datajack Impact Weapon Flail Slashing Weapon Vibroblade Piercing Weapon Force Lance Build | -11 -10 -10 -9 -9 -9 -9 -6 -6 -6 -6 -5 -5 -5 -5 -5 -4 -4 -4 -4 -4 -4 -4 -3 -3 -3 -3 ------- Run | Yrd Mat Min Mat Sto Rec Scr Fac Low Low Zio Pro Fac Upp Upp War Pro Fac Was Fac Upp Upp Zhi Pro Res Qua Frg Slots Evolved 22 | 3 2 . 4 2 . 2 2 . 2 . . 1 1 . . . 1 . . . . . . . 1 1 Power 2 | . . . 1 1 . . . . . . . . . . . . . . . . . . . . . . Propulsion 6 | 1 . . 2 1 . 1 . . . . . 1 . . . . . . . . . . . . . . Utility 11 | 1 2 . 1 . . 1 2 . . . . . 1 . . . 1 . . . . . . . 1 1 Weapon 3 | 1 . . . . . . . . 2 . . . . . . . . . . . . . . . . . Parts Attached 225 | 6 9 2 16 6 6 20 24 . 3 1 . 34 2 3 3 . 11 1 36 . 1 6 1 7 1 26 Power 26 | 1 1 . 1 2 . . 4 . . . . 4 . . 1 . . . 9 . . 2 1 . . . Engine 8 | 1 . . 1 2 . . 3 . . . . . . . . . . . 1 . . . . . . . Core 7 | . 1 . . . . . 1 . . . . 2 . . . . . . 3 . . . . . . . Reactor 11 | . . . . . . . . . . . . 2 . . 1 . . . 5 . . 2 1 . . . Propulsion 79 | 2 . . 4 2 6 . 10 . . . . 16 . 3 . . 1 . 19 . 1 4 . 2 . 9 Treads 2 | . . . . . . . . . . . . 1 . . . . . . . . 1 . . . . . Leg 4 | . . . . . . . 1 . . . . 2 . . . . . . 1 . . . . . . . Wheel 2 | 2 . . . . . . . . . . . . . . . . . . . . . . . . . . Hover 41 | . . . . . 6 . 3 . . . . . . . . . . . 18 . . 4 . 2 . 8 Flight 30 | . . . 4 2 . . 6 . . . . 13 . 3 . . 1 . . . . . . . . 1 Utility 72 | 1 5 . 5 2 . 15 10 . 1 . . 4 1 . . . 6 . 8 . . . . 2 1 11 Device 46 | 1 3 . 1 . . 8 7 . . . . 2 1 . . . 6 . 7 . . . . 2 . 8 Storage 3 | . . . . . . 1 . . . . . . . . . . . . . . . . . . . 2 Processor 9 | . 2 . . . . 5 . . . . . . . . . . . . 1 . . . . . . 1 Hackware . | . . . . . . . . . . . . . . . . . . . . . . . . . . . Protection 14 | . . . 4 2 . 1 3 . 1 . . 2 . . . . . . . . . . . . 1 . Artifact . | . . . . . . . . . . . . . . . . . . . . . . . . . . . Weapon 48 | 2 3 2 6 . . 5 . . 2 1 . 10 1 . 2 . 4 1 . . . . . 3 . 6 Energy Gun 11 | 2 2 1 1 . . 1 . . . 1 . 1 . . 1 . 1 . . . . . . . . . Energy Cannon 5 | . . . 2 . . . . . . . . 1 . . 1 . . . . . . . . 1 . . Ballistic Gun 2 | . . . . . . . . . . . . 1 . . . . . . . . . . . . . 1 Ballistic Cannon 1 | . . . . . . 1 . . . . . . . . . . . . . . . . . . . . Launcher 6 | . 1 1 . . . . . . . . . 2 . . . . . . . . . . . . . 2 Special Weapon 3 | . . . 1 . . . . . . . . . 1 . . . 1 . . . . . . . . . Impact Weapon 2 | . . . 2 . . . . . . . . . . . . . . . . . . . . . . . Slashing Weapon 2 | . . . . . . 1 . . . . . . . . . . . . . . . . . 1 . . Piercing Weapon 16 | . . . . . . 2 . . 2 . . 5 . . . . 2 1 . . . . . 1 . 3 Special Melee Weapon . | . . . . . . . . . . . . . . . . . . . . . . . . . . . Unidentified Prototypes 7 | . . . 2 2 . . . . . . . . . . . . . . . . . 2 . . 1 . Parts Lost 8 | . . . . 1 . . 2 . . . . 2 . . . . 2 . 1 . . . . . . . Power 1 | . . . . . . . . . . . . . . . . . . . 1 . . . . . . . Propulsion 1 | . . . . . . . 1 . . . . . . . . . . . . . . . . . . . Utility 6 | . . . . 1 . . 1 . . . . 2 . . . . 2 . . . . . . . . . Weapon . | . . . . . . . . . . . . . . . . . . . . . . . . . . . Highest Loss Streak 1 | . . . . 1 . . 1 . . . . 1 . . . . 1 . 1 . . . . . . . To Critical Strikes . | . . . . . . . . . . . . . . . . . . . . . . . . . . . Average Backups 2 | 1 2 1 2 2 2 1 2 1 1 1 1 2 2 2 2 2 2 2 2 3 3 3 3 3 2 2 Power . | . . . . . . . . . . . . . 1 1 1 1 1 . . . . . . . . . Propulsion . | . . . . 1 . . . . . . . . . . . . . . . . . . . . . . Utility . | . . 1 . . . . . . . . . . . . . . . . 1 2 2 2 2 2 . . Weapon 1 | . 1 . 1 1 1 1 1 1 1 1 1 1 1 1 1 1 1 2 1 1 . 1 1 1 1 1 Tool/Special . | . . . . . . . . . . . . . . . . . . . . . . . . . . . Unused Backups 22 | . 2 . . 2 1 1 4 . . . . 3 . . . . . . 7 . . . . . 1 1 Power 8 | . 1 . . . 1 . 2 . . . . 1 . . . . . . 3 . . . . . . . Propulsion 7 | . . . . 2 . 1 . . . . . 2 . . . . . . 2 . . . . . . . Utility 5 | . . . . . . . 2 . . . . . . . . . . . 2 . . . . . 1 . Weapon 2 | . 1 . . . . . . . . . . . . . . . . . . . . . . . . 1 Tool/Special . | . . . . . . . . . . . . . . . . . . . . . . . . . . . Average Slot Usage (%) 96 | . 96 100 92 95 92 99 97 100 100 98 100 97 95 94 94 95 91 91 92 100 99 99 99 100 100 96 Engine 4 | . 5 . 5 8 13 12 15 15 14 14 14 4 . . . . . . . . . . . . . . Core 2 | . 6 11 7 6 6 5 . . . . . 5 . . . . . . . . . . . . . . Reactor 5 | . . . . . . . . . . . . 2 8 8 8 8 8 8 8 12 12 11 11 12 12 11 Wheel 2 | . 25 22 3 . . . . . . . . . . . . . . . . . . . . . . . Hover 14 | . . . . . 24 33 25 . . . . . . . . . . . 10 29 28 29 29 29 28 26 Flight 11 | . . . 24 30 7 . 4 31 30 28 28 30 30 29 30 30 29 29 15 . . . . . . . Device 25 | . 29 33 18 14 13 17 20 26 25 23 23 22 23 26 26 26 25 25 31 33 33 32 33 33 32 28 Processor 8 | . 2 11 7 6 6 8 12 10 9 9 9 9 8 8 8 8 8 8 8 8 8 8 8 8 8 6 Protection 3 | . . . 8 10 6 5 4 5 4 4 4 3 4 4 3 4 4 4 1 . . . . . 1 3 Energy Gun 2 | . 25 21 10 . . . . . . . . . . . . . . . . . . . . . . . Impact Weapon 1 | . . . 1 14 13 9 . . . . . . . . . . . . . . . . . . . . Piercing Weapon 10 | . . . . . . . 10 9 12 17 18 17 17 16 16 16 13 12 14 15 13 15 14 14 12 11 Peak Build Rating 247 | 6 12 12 26 32 32 62 83 79 87 95 87 144 148 147 150 141 153 149 170 170 171 172 173 178 183 247 Average Rating 119 | 3 8 11 22 26 27 39 75 78 81 87 86 115 143 144 140 140 145 146 152 169 169 168 171 173 179 230 On Entrance 104 | . 6 11 12 25 32 27 62 79 79 87 87 87 143 146 141 141 141 146 147 169 169 171 171 171 178 183 Naked Turns . | . . . . . . . . . . . . . . . . . . . . . . . . . . . Heaviest Build 111 | 9 13 13 29 34 34 38 42 41 43 55 45 63 58 58 58 58 68 73 89 89 89 92 83 87 96 111 Greatest Support 140 | 26 26 26 29 35 45 52 62 43 43 43 43 73 64 67 67 76 76 67 102 92 92 97 97 135 135 140 Greatest Overweight (x) 3 | 2 . . 3 . 2 . 2 . . 1 1 . . 1 . . 1 1 1 . 1 . . . . 1 Average Overweight (x) . | . . . . . . . . . . . . . . . . . . . . . . . . . . . Largest Inventory Capacity 5 | 3 3 3 3 4 4 4 4 4 5 5 5 5 5 5 5 5 5 5 5 5 5 5 5 5 5 5 Average Capacity 4 | 3 3 3 3 3 4 4 4 4 4 5 5 5 5 5 5 5 5 5 5 5 5 5 5 5 5 5 Most Carried 5 | 3 3 3 3 4 4 4 4 3 5 5 5 5 5 5 5 5 5 5 5 4 5 5 5 5 5 5 Average Carried 3 | 1 2 2 2 2 3 2 2 1 2 5 4 4 3 4 4 4 4 4 3 3 3 3 4 4 4 4 Final Capacity 5 | 3 3 3 3 4 4 4 4 4 5 5 5 5 5 5 5 5 5 5 5 5 5 5 5 5 5 5 Final Carried 5 | 1 2 2 2 3 2 4 1 1 5 5 5 4 3 5 5 5 4 5 3 3 4 4 5 4 2 2 Class Distribution -------------------- 38% | Hacker-Ninja 15% | Scout 11% | Scavenger-Ninja 10% | Hacker-Scout 9% | Hacker-Gladiator 5% | Mutant 4% | Skirmisher Dominant Class ---------------- Mutant | -10/Materials Skirmisher | -10/Mines Scout | -9/Materials Commander-Scout | -9/Storage Scout | -9/Recycling Scout | -9/Scraptown Scavenger-Ninja | -6/Factory Scavenger-Ninja | -6/Lower Caves Scavenger-Ninja | -6/Lower Caves Scavenger-Ninja | -6/Zion Scavenger-Ninja | -5/Proximity Caves Hacker-Ninja | -5/Factory Hacker-Ninja | -5/Upper Caves Hacker-Ninja | -5/Upper Caves Hacker-Ninja | -5/Warlord Hacker-Ninja | -4/Proximity Caves Hacker-Ninja | -4/Factory Hacker-Gladiator | -4/Waste Hacker-Gladiator | -4/Factory Hacker-Ninja | -4/Upper Caves Hacker-Ninja | -4/Upper Caves Hacker-Ninja | -4/Zhirov Hacker-Ninja | -3/Proximity Caves Hacker-Ninja | -3/Research Hacker-Ninja | -3/Quarantine Hacker-Scout | -3/Protoforge Resources | -11 -10 -10 -9 -9 -9 -9 -6 -6 -6 -6 -5 -5 -5 -5 -5 -4 -4 -4 -4 -4 -4 -4 -3 -3 -3 -3 ----------- Run | Yrd Mat Min Mat Sto Rec Scr Fac Low Low Zio Pro Fac Upp Upp War Pro Fac Was Fac Upp Upp Zhi Pro Res Qua Frg Matter Collected 49336 | 260 147 63 403 127 109 320 437 54 162 50 . 615 538 200 135 380 198 82 937 188 316 182 111 416 70 42836 Remotely 42291 | . . . . . . . . . . . . . . . . . . . . . . . . . . 42291 Salvage Created 26777 | 18 1097 170 1007 575 1405 177 2178 516 684 . 1062 2922 1452 316 119 860 1376 192 2721 665 668 386 289 2332 902 2688 Parts 1337 | 2 58 12 64 12 15 12 139 20 42 . 65 127 70 19 2 31 71 12 120 14 34 8 20 113 46 209 Haulers Intercepted 24 | . 1 . 3 2 . . 5 . . . . 4 1 . . . 4 . 3 . . . . 1 . . Recyclers Shooed 2 | . 1 . 1 . . . . . . . . . . . . . . . . . . . . . . . Parts Field Recycled . | . . . . . . . . . . . . . . . . . . . . . . . . . . . Retrieved Matter . | . . . . . . . . . . . . . . . . . . . . . . . . . . . Parts Self-Destructed 299 | . . . . . . . . 18 37 . 60 . 74 17 . 29 . . . 13 28 4 19 . . . Prevented 3 | . . . . . . . . . . . . . 2 . . . . . . 1 . . . . . . Kills | -11 -10 -10 -9 -9 -9 -9 -6 -6 -6 -6 -5 -5 -5 -5 -5 -4 -4 -4 -4 -4 -4 -4 -3 -3 -3 -3 ------- Run | Yrd Mat Min Mat Sto Rec Scr Fac Low Low Zio Pro Fac Upp Upp War Pro Fac Was Fac Upp Upp Zhi Pro Res Qua Frg Combat Hostiles Destroyed 840 | . 23 7 28 9 3 3 34 11 19 . 31 38 26 12 4 17 20 . 27 10 19 . 10 28 15 446 Melee 340 | . . . 3 3 3 3 31 8 13 . 27 34 26 8 . 11 19 . 27 8 9 . 7 23 15 62 Guns 41 | . 22 5 14 . . . . . . . . . . . . . . . . . . . . . . . Cannons 5 | . . . 5 . . . . . . . . . . . . . . . . . . . . . . . AOE 443 | . . 2 3 . . . 3 3 6 . 4 4 . 4 4 6 1 . . 2 10 . 3 5 . 383 Classes Destroyed 35 | 1 5 . 4 . . 4 4 1 1 . 1 . 1 . . . 1 1 . . . . . . 1 10 Worker 9 | . . . 1 1 . . 1 . . . . 1 . . . . . . 2 . . . . 3 . . Builder 7 | . . . . . . . 2 . . . . 3 . . . . . . . . . . . 1 1 . Tunneler 2 | 1 . . . . . . . . . . . . . . . . . . . . . . . 1 . . Hauler 24 | . 1 . 3 2 . . 5 . . . . 4 1 . . . 4 . 3 . . . . 1 . . Recycler 5 | . 2 . . . 1 . . . . . . . . . . . . . 2 . . . . . . . Carrier 7 | . . . . . . . . . . . . . . . . . . . . . . . . . . 7 Mechanic 21 | . . . . . . . . . . . . . . . . . . . . . . . . . . 21 Operator 17 | . . . 1 . . . 1 . . . . 4 . . . . 2 . 2 . . . . 4 1 2 Drone 26 | . . . . . . . . . . . 2 . . . . . . . . . . . . . . 24 Watcher 26 | . 3 . 2 . . . 3 . . . . 4 . . . . 4 . 6 . . . . 2 . 2 Swarmer 128 | . 3 4 9 . . . 8 6 7 . 11 8 4 1 . 1 4 . 4 1 5 . . 6 3 43 Saboteur 10 | . . . . . . . . . . . . . . . . . . . . . . . . . . 10 Grunt 231 | . 20 3 9 6 . . 7 4 11 . 16 11 10 7 2 9 4 . 8 4 10 . 7 5 4 74 Brawler 30 | . . . 1 . . . . . 1 . . 2 2 2 . . . . . . 2 . . . . 20 Duelist 40 | . . . . . . . 1 . 1 . . . 2 . . . . . . 3 . . . . . 33 Protector 24 | . . . . . . . . . . . . . . . . . 1 . . . . . . . . 23 Researcher 6 | . . . . . . . . . . . . . . . . . . . . . . . . . 1 5 Sentry 67 | . . . 9 3 3 . 9 . 2 . 2 7 2 2 . 1 5 . 4 2 . . 1 8 . 7 Specialist 5 | . . . . . . . . . . . . . 3 . . . . . . . . . . . . 2 Hunter 66 | . . . . . . . 1 . . . . 3 2 . . 4 . . 3 . 2 . . 2 5 44 Programmer 101 | . . . . . . . 8 . . . . 7 1 . 1 2 6 . 8 . . . 1 7 3 57 Behemoth 3 | . . . . . . . . 1 . . . . . . 1 . . . . . . . 1 . . . Hotshot 6 | . . . . . . . . . . . . . . . . . . . . . . . . . . 6 Decapitator 12 | . . . . . . . . . . . . . . . . . . . . . . . . . . 12 Immortal 1 | . . . . . . . . . . . . . . . . . . . . . . . . . . 1 Overlord 1 | . . . . . . . . . . . . . . . . . . . . . . . . . . 1 Striker 35 | . . . . . . . . . . . . . . . . . . . . . . . . . . 35 Executioner 49 | . . . . . . . . . . . . . . . . . . . . . . . . . . 49 V-Series 1 | . . . . . . . . . . . . . . . . . . . . . . . . . . 1 Ranger 1 | . . . . . . 1 . . . . . . . . . . . . . . . . . . . . Guru 1 | . . . . . . 1 . . . . . . . . . . . . . . . . . . . . Scientist 1 | . . . . . . 1 . . . . . . . . . . . . . . . . . . . . Scrapper 1 | . . . . . . 1 . . . . . . . . . . . . . . . . . . . . Elite 1 | . . . . . . . . . . . . . . . . . . . . . . . . . . 1 Scrapoid 7 | . . . . . . . . . . . . . . . . . . . . . . . . . . 7 Savage 2 | . . . . . . . . . . . . . 1 1 . . . . . . . . . . . . Martyr 2 | . . . . . . . . . . . . . . . . . . 2 . . . . . . . . Mutant 1 | . . . . . . . . . 1 . . . . . . . . . . . . . . . . . Best Kill Streak 35 | 1 5 3 5 3 1 2 7 7 6 . 14 7 9 6 4 11 6 . 5 6 9 1 5 5 4 35 Combat Bots Only 32 | . 4 3 4 3 1 2 6 7 6 . 14 6 9 6 4 11 4 . 5 6 9 . 5 4 4 32 Max Kills in Single Turn 7 | 1 1 2 3 1 1 1 3 3 2 . 3 3 2 1 2 2 1 1 2 1 2 1 1 2 2 7 Gunslinging . | . . . . . . . . . . . . . . . . . . . . . . . . . . . Exploded 6 | . . 2 3 . . . 3 3 2 . 3 3 . 1 2 2 1 . . 1 2 . 1 2 . 6 Melee 2 | . . . 1 1 1 1 1 2 1 . 1 1 2 1 . 1 1 . 2 1 1 . 1 1 2 2 Uniques/NPCs Destroyed 1 | . . . . . . . . . . . . . . . . . . . . . . 1 . . . . Zhirov (-4/Zhirov) Combat | -11 -10 -10 -9 -9 -9 -9 -6 -6 -6 -6 -5 -5 -5 -5 -5 -4 -4 -4 -4 -4 -4 -4 -3 -3 -3 -3 -------- Run | Yrd Mat Min Mat Sto Rec Scr Fac Low Low Zio Pro Fac Upp Upp War Pro Fac Was Fac Upp Upp Zhi Pro Res Qua Frg Hostile Shots Fired 2546 | . 77 30 128 52 6 57 335 58 54 . 54 188 70 29 . 64 154 . 184 32 46 8 33 96 119 672 Missed 1317 | . 23 9 42 21 3 26 159 25 30 . 23 102 37 15 . 40 75 . 74 18 21 2 19 65 64 424 Hits 1229 | . 54 21 86 31 3 31 176 33 24 . 31 86 33 14 . 24 79 . 110 14 25 6 14 31 55 248 Melee 35 | . . . . . . 1 4 . . . . . 1 1 . . . . . 4 . . . . . 24 Projectile 1194 | . 54 21 86 31 3 30 172 33 24 . 31 86 32 13 . 24 79 . 110 10 25 6 14 31 55 224 AOE 7 | . . . . . . . . . . . . . . . . . 1 . 3 . . . . . . 3 Critical Strikes 69 | . . . 7 . . 2 3 2 1 . . 6 . 1 . 1 7 . 6 1 1 . 1 2 3 25 Actively Blocked 39 | . . . . . . . . . . . . . . . . . . . 6 1 1 . 1 2 3 25 Part Disruptions 6 | . . . . . . . 1 . . . . . . . . . 1 . 1 . . . . 1 . 2 Damage Taken 26364 | . 611 218 1064 411 47 515 2199 685 366 . 668 1718 625 352 . 363 1915 . 2252 360 492 479 342 736 967 8979 Core 19363 | . 485 170 663 260 24 372 1574 537 266 . 505 1236 454 280 . 274 1452 . 1832 291 397 392 281 590 643 6385 Absorbed by Shields 63 | . . . . . . . . . . . . 21 . . . . . . . . . . . . . 42 Redirected to Core 16117 | . 395 151 547 207 24 340 1310 394 248 . 399 994 372 195 . 274 1221 . 1427 250 341 318 224 533 583 5370 Regen/Repaired (Parts) 336 | . . . 13 . . . 174 . . . . 45 . . . . . . 104 . . . . . . . Core Remaining (%) 92 | 100 . 94 . . . 66 . . . . 94 . . . . 100 . . . . . . 100 . . 95 Volleys Fired 578 | 1 76 26 92 . . . 2 2 5 1 4 12 11 6 5 10 9 . 3 6 12 . 10 3 . 282 Largest 2 | 2 2 2 2 . . . 1 1 1 1 1 1 1 1 1 1 1 . 1 1 1 . 1 1 . 1 Hottest 250 | 90 100 115 125 . . . 33 33 33 250 33 90 80 80 80 80 5 . 80 80 80 . 80 80 . 45 Shots Fired 727 | 2 151 51 145 . . . 2 2 5 1 4 12 11 6 5 10 9 . 3 6 12 . 10 3 . 277 Gun 310 | 2 150 50 105 . . . . . . 1 . 1 . . . . . . . . . . . . . 1 Cannon 36 | . . . 35 . . . . . . . . 1 . . . . . . . . . . . . . . Launcher 368 | . 1 1 1 . . . 2 2 5 . 4 10 11 6 5 10 . . 3 6 12 . 10 3 . 276 Special 13 | . . . 4 . . . . . . . . . . . . . 9 . . . . . . . . . Kinetic 1 | . . . . . . . . . . . . . . . . . . . . . . . . . . 1 Thermal 348 | 2 150 50 144 . . . . . . 1 . 1 . . . . . . . . . . . . . . Explosive 367 | . 1 1 1 . . . 2 2 5 . 4 9 11 6 5 10 . . 3 6 12 . 10 3 . 276 Electromagnetic 2 | . . . . . . . . . . . . 2 . . . . . . . . . . . . . . Robot Hit Streak 65 | 1 19 9 13 . . . . . . . 5 1 . . . . 4 . . . . . . . . 65 Robot Miss Streak 5 | 1 4 5 5 . . . . . . . . 1 . . . . 2 . . . . . . . . . Penetration Max . | . . . . . . . . . . . . . . . . . . . . . . . . . . . Secondary Targets . | . . . . . . . . . . . . . . . . . . . . . . . . . . . Shots Hit Robots 1531 | 1 101 28 112 28 26 5 110 29 39 . 71 109 52 28 . 29 98 8 126 31 24 14 26 88 58 290 Core Hits 1155 | 1 56 14 40 3 6 3 60 19 30 . 40 62 39 18 6 35 39 5 51 20 38 7 27 44 20 472 Critical Kills . | . . . . . . . . . . . . . . . . . . . . . . . . . . . Critical Parts Destroyed 13 | . . . 3 7 3 . . . . . . . . . . . . . . . . . . . . . Critical Strikes 223 | . 6 3 8 7 3 1 13 6 6 . 6 16 4 3 . 3 13 . 21 2 3 2 5 13 7 72 Burn 13 | . 6 3 4 . . . . . . . . . . . . . . . . . . . . . . . Smash 14 | . . . 4 7 3 . . . . . . . . . . . . . . . . . . . . . Sever 5 | . . . . . . . . . . . . . . . . . . . . . . . . . 3 2 Impale 191 | . . . . . . 1 13 6 6 . 6 16 4 3 . 3 13 . 21 2 3 2 5 13 4 70 Melee Attacks 2346 | . . . 47 58 33 18 264 41 56 . 114 280 80 36 13 37 252 9 283 37 35 19 35 164 84 351 Impact 139 | . . . 47 58 33 1 . . . . . . . . . . . . . . . . . . . . Slashing 61 | . . . . . . 2 . . . . . . . . . . . . . . . . . 6 13 40 Piercing 2146 | . . . . . . 15 264 41 56 . 114 280 80 36 13 37 252 9 283 37 35 19 35 158 71 311 Sneak Attacks 176 | . . . 1 5 5 1 13 6 16 . 12 15 9 6 . 1 15 3 13 12 . . 2 13 6 22 Combat Hostiles 92 | . . . 1 1 4 . 4 6 6 . 12 5 5 3 . 1 5 . 5 6 . . 2 6 4 16 Follow-up Attacks 458 | . . . 6 6 2 . 19 6 11 . 31 48 12 8 . 10 36 1 62 9 8 5 9 34 30 105 Damage Inflicted 229648 | 12 1224 533 2391 1036 1875 212 4409 1792 2504 . 3755 6247 3897 2103 508 3473 4915 753 6847 3002 3602 1284 3177 5977 3462 160658 Guns 2497 | 12 1221 355 909 . . . . . . . . . . . . . . . . . . . . . . . Cannons 505 | . . . 505 . . . . . . . . . . . . . . . . . . . . . . . Explosions 157506 | . . 178 174 . . . 214 153 456 . 444 531 765 483 508 1888 . . . 534 2063 . 1197 624 . 147294 Melee 68916 | . . . 803 1036 1875 212 4173 1639 2048 . 3311 5716 3132 1620 . 1585 4915 753 6847 2468 1539 1284 1980 5353 3462 13165 Ramming 224 | . 3 . . . . . 22 . . . . . . . . . . . . . . . . . . 199 Kinetic . | . . . . . . . . . . . . . . . . . . . . . . . . . . . Thermal 3050 | 12 1221 403 1414 . . . . . . . . . . . . . . . . . . . . . . . Explosive 157458 | . . 130 174 . . . 214 153 456 . 444 531 765 483 508 1888 . . . 534 2063 . 1197 624 . 147294 Electromagnetic . | . . . . . . . . . . . . . . . . . . . . . . . . . . . Impact 3714 | . . . 803 1036 1875 . . . . . . . . . . . . . . . . . . . . . Slashing 2479 | . . . . . . 80 . . . . . . . . . . . . . . . . . . 568 1831 Piercing 62723 | . . . . . . 132 4173 1639 2048 . 3311 5716 3132 1620 . 1585 4915 753 6847 2468 1539 1284 1980 5353 2894 11334 Highest Corruption 16 | . 1 1 4 4 4 2 3 3 3 3 . 4 5 5 5 . 8 8 12 3 3 3 3 2 2 16 Average Corruption 5 | . 1 1 4 4 4 1 1 3 3 3 . 2 4 5 5 . 4 8 8 3 3 3 3 1 2 11 Corruption Purged 9 | . . . . . . . . . . . . . . . . . . . 9 . . . . . . . Corruption Blocked . | . . . . . . . . . . . . . . . . . . . . . . . . . . . Effects 489 | . 12 4 39 13 16 . 19 5 6 2 . 3 9 6 . . 21 9 129 7 5 3 7 18 4 152 Message Errors 122 | . 4 . 11 3 2 . 5 . 1 . . 1 1 3 . . 10 2 27 1 1 . 1 5 1 43 Matter Fused 104 | . 4 3 10 3 6 . . 2 1 . . . 2 . . . 4 1 31 . 3 1 1 2 . 30 Heat Flow Errors 59 | . 1 1 6 1 2 . 3 . 1 1 . 1 1 . . . 3 1 16 4 . . . 2 . 15 Energy Discharges 66 | . 1 . 5 2 1 . 5 2 . . . . . . . . 2 2 22 2 . . 2 5 . 15 Parts Rejected 8 | . . . . . . . . . . . . . . . . . . . 3 . . . 1 . 1 3 Parts Fused 11 | . . . . 1 . . 1 . . . . 1 . . . . . 2 3 . . . . . 1 2 Data Loss (minor) 63 | . 1 . 1 2 4 . 3 . 2 . . . 2 3 . . 2 . 16 . 1 2 2 3 1 18 Data Loss (major) 31 | . 1 . 4 1 1 . 1 . 1 1 . . 2 . . . . 1 7 . . . . 1 . 10 Alerts 15 | . . . 2 . . . 1 1 . . . . 1 . . . . . 4 . . . . . . 6 Misdirections 5 | . . . . . . . . . . . . . . . . . . . . . . . . . . 5 Weapon Failures 5 | . . . . . . . . . . . . . . . . . . . . . . . . . . 5 Overload Shots . | . . . . . . . . . . . . . . . . . . . . . . . . . . . Overflow Damage 32310 | . . 37 157 411 956 40 180 107 145 . 377 712 523 95 8 361 305 157 1023 393 174 335 382 928 857 23647 Projectiles 22 | . . . 22 . . . . . . . . . . . . . . . . . . . . . . . Explosions 22229 | . . 37 41 . . . . . 3 . 44 41 12 23 8 46 . . . 45 102 . . 10 . 21817 Melee 10059 | . . . 94 411 956 40 180 107 142 . 333 671 511 72 . 315 305 157 1023 348 72 335 382 918 857 1830 Knockbacks 5 | . . . . 1 2 . . . . . . . . . . . . . . . . . . . . 2 Impact 5 | . . . . 1 2 . . . . . . . . . . . . . . . . . . . . 2 Kinetic . | . . . . . . . . . . . . . . . . . . . . . . . . . . . Secondary . | . . . . . . . . . . . . . . . . . . . . . . . . . . . Self-Inflicted Damage 347 | . 1 . . . . . 82 28 . . . 137 . . . . . . . . . . . . . 99 Shots 9 | . . . . . . . 2 1 . . . 6 . . . . . . . . . . . . . . Rammed 7 | . 1 . . . . . 3 . . . . . . . . . . . . . . . . . . 3 Targets Rammed 7 | . 1 . . . . . 3 . . . . . . . . . . . . . . . . . . 3 Kicked . | . . . . . . . . . . . . . . . . . . . . . . . . . . . Crushed . | . . . . . . . . . . . . . . . . . . . . . . . . . . . Highest Temperature 506 | 30 276 240 506 261 261 13 211 8 201 274 . 124 205 . 8 87 257 196 307 261 17 . . 206 . 163 Average Temperature 88 | 17 51 59 151 142 124 11 81 4 84 191 . 12 126 . 8 50 89 104 60 117 12 . . 108 . 82 Received Heat Transfer 3770 | . 315 72 501 120 9 218 504 189 138 . 174 171 171 108 . 73 278 . 156 24 78 27 72 90 12 270 Effects 33 | . . . 33 . . . . . . . . . . . . . . . . . . . . . . . Shutdowns 10 | . . . 10 . . . . . . . . . . . . . . . . . . . . . . . Energy Bleed 1 | . . . 1 . . . . . . . . . . . . . . . . . . . . . . . Interference 16 | . . . 16 . . . . . . . . . . . . . . . . . . . . . . . Matter Decay 2 | . . . 2 . . . . . . . . . . . . . . . . . . . . . . . Short Circuit 2 | . . . 2 . . . . . . . . . . . . . . . . . . . . . . . Damage (minor) 2 | . . . 2 . . . . . . . . . . . . . . . . . . . . . . . Siege Activations . | . . . . . . . . . . . . . . . . . . . . . . . . . . . Martial Activations . | . . . . . . . . . . . . . . . . . . . . . . . . . . . Shielding Activations . | . . . . . . . . . . . . . . . . . . . . . . . . . . . Robots Disrupted . | . . . . . . . . . . . . . . . . . . . . . . . . . . . Combat Hostiles . | . . . . . . . . . . . . . . . . . . . . . . . . . . . Robots Corrupted 15 | . . . 2 6 6 . . . . . . . . . . . . . . . . . . . . 1 Combat Hostiles 8 | . . . 2 6 . . . . . . . . . . . . . . . . . . . . . . Parts Fried 24 | . . . 3 9 12 . . . . . . . . . . . . . . . . . . . . . Impact Corruptions 48 | . . . 5 14 28 . . . . . . . . . . . . . . . . . . . . 1 Robots Melted 2 | . 1 . 1 . . . . . . . . . . . . . . . . . . . . . . . Combat Hostiles 2 | . 1 . 1 . . . . . . . . . . . . . . . . . . . . . . . Parts Melted 22 | . 7 1 11 . . 2 . . . . . . . . . . . . . . . . . . . 1 Heat Transferred 8627 | 37 3667 1408 3515 . . . . . . . . . . . . . . . . . . . . . . . Parts Sabotaged . | . . . . . . . . . . . . . . . . . . . . . . . . . . . Parts Stolen . | . . . . . . . . . . . . . . . . . . . . . . . . . . . Parts Stripped . | . . . . . . . . . . . . . . . . . . . . . . . . . . . Power Chain Reactions 3 | . . . . . . . . . . . . 3 . . . . . . . . . . . . . . Alert | -11 -10 -10 -9 -9 -9 -9 -6 -6 -6 -6 -5 -5 -5 -5 -5 -4 -4 -4 -4 -4 -4 -4 -3 -3 -3 -3 ------- Run | Yrd Mat Min Mat Sto Rec Scr Fac Low Low Zio Pro Fac Upp Upp War Pro Fac Was Fac Upp Upp Zhi Pro Res Qua Frg Maximum Alert Level 5 | . 1 1 2 2 1 . 2 . . . . 3 . . . . 2 . 2 . . . . 2 2 5 Low Security (%) 30 | 100 57 92 64 . 40 . 18 . . . . 22 . . . . 59 100 25 . . . . 15 2 5 Level 1 41 | . 42 7 23 46 59 . 53 . . . . 45 . . . . 34 . 56 . . . . 80 74 9 Level 2 13 | . . . 11 52 . . 28 . . . . 22 . . . . 6 . 17 . . . . 4 23 8 Level 3 2 | . . . . . . . . . . . . 10 . . . . . . . . . . . . . 7 Level 4 . | . . . . . . . . . . . . . . . . . . . . . . . . . . 2 Level 5 12 | . . . . . . . . . . . . . . . . . . . . . . . . . . 66 High Security . | . . . . . . . . . . . . . . . . . . . . . . . . . . . Max Security . | . . . . . . . . . . . . . . . . . . . . . . . . . . . Peak Influence 10763 | 5 305 220 564 534 319 . 692 . . . . 872 . . . . 455 162 618 . . . . 421 437 10763 Initial 270 | . . 101 43 237 160 . . . . . . 270 . . . . 163 162 . . . . . 74 207 235 Average 1010 | 1 155 150 178 383 216 . 333 . . . . 375 . . . . 200 80 279 . . . . 280 339 4302 Influence Increases 25595 | 5 765 362 1093 746 306 . 1455 310 405 . 665 1661 535 240 80 390 1001 . 1865 215 430 15 245 1033 482 11291 Destroy 0b10 Robot/C 16640 | . 460 260 560 400 60 . 680 220 360 . 580 760 520 240 80 340 380 . 860 200 380 . 200 560 320 8220 Destroy 0b10 Robot/NC 960 | 5 30 . 35 15 90 . 60 10 . . 10 75 5 . . 10 55 . 75 15 . 15 15 60 10 370 Destroy Leader 2788 | . 98 40 150 104 . . 226 20 30 . 30 196 10 . . 40 116 . 228 . 50 . 30 166 30 1224 Allied During Kill 553 | . . 33 . 129 . . . . . . . . . . . . . . 391 . . . . . . . Successful Hack 445 | . 16 . 20 18 34 . 164 . . . . 20 . . . . 47 . 79 . . . . 14 33 . Select Force Hacks 210 | . 60 . 30 . 120 . . . . . . . . . . . . . . . . . . . . . Disable Machine 930 | . 15 15 45 30 . . 75 . . . . 45 . . . . 15 . 45 . . . . 30 15 600 Destroy Structure 1329 | . 11 14 28 5 2 . 85 . . . . 220 . . . . 148 . 142 . . . . 98 14 562 Partial Spotted 480 | . . . 75 30 . . 60 . . . . 90 . . . . 75 . 45 . . . . 45 30 30 Lose Combat Pursuer 1260 | . 75 . 150 15 . . 105 60 15 . 45 255 . . . . 165 . . . . . . 60 30 285 Influence Decreases 14839 | 5 505 509 642 897 621 98 765 426 300 679 236 1218 537 326 794 200 797 464 1247 390 235 653 135 775 431 954 Entered New Map 5187 | . . 159 70 327 253 98 . 256 110 679 . 159 323 166 784 70 97 302 . 230 85 638 . 36 161 184 Time Decay 7707 | 5 505 310 562 230 368 . 595 170 190 . 236 589 214 160 10 130 530 162 652 160 150 15 135 589 270 770 Lost Part 80 | . . . . 10 . . 20 . . . . 20 . . . . 20 . 10 . . . . . . . Lost Ally 515 | . . 40 10 180 . . . . . . . . . . . . . . 285 . . . . . . . Purge Threat 1350 | . . . . 150 . . 150 . . . . 450 . . . . 150 . 300 . . . . 150 . . Squads Dispatched 109 | . 6 . 1 4 . . 26 . . . . 15 . . . . 13 . 17 . . . . 10 5 12 Investigation 53 | . 4 . 1 2 . . 16 . . . . 7 . . . . 7 . 6 . . . . 5 1 4 Extermination 35 | . . . . . . . 7 . . . . 4 . . . . 6 . 9 . . . . 4 2 3 Reinforcement 14 | . 2 . . 1 . . . . . . . 3 . . . . . . 1 . . . . 1 2 4 Assault 6 | . . . . . . . 3 . . . . 1 . . . . . . 1 . . . . . . 1 Garrison 1 | . . . . 1 . . . . . . . . . . . . . . . . . . . . . . Intercept . | . . . . . . . . . . . . . . . . . . . . . . . . . . . Searches Triggered . | . . . . . . . . . . . . . . . . . . . . . . . . . . . Construction Impeded . | . . . . . . . . . . . . . . . . . . . . . . . . . . . Haulers Reinforced 1 | . . . . . . . . . . . . . . . . . . . . . . . . 1 . . Active Scanning Responses . | . . . . . . . . . . . . . . . . . . . . . . . . . . . Cargo Convoy Interrupts 1 | . . . . . . . . . . . . 1 . . . . . . . . . . . . . . Stealth | -11 -10 -10 -9 -9 -9 -9 -6 -6 -6 -6 -5 -5 -5 -5 -5 -4 -4 -4 -4 -4 -4 -4 -3 -3 -3 -3 --------- Run | Yrd Mat Min Mat Sto Rec Scr Fac Low Low Zio Pro Fac Upp Upp War Pro Fac Was Fac Upp Upp Zhi Pro Res Qua Frg Distress Signals 18 | . 2 . 5 3 . . 3 . . . . 1 . . . . 1 . . . . . . . . 3 Communications Jammed 74 | . . . . . . . 1 . . . 1 36 . . . . . . 15 . . . . 1 12 8 Distress Signals 70 | . . . . . . . 1 . . . . 35 . . . . . . 15 . . . . . 12 7 Times Spotted 1005 | . 38 9 46 24 1 19 50 10 14 . 23 70 21 5 1 15 36 1 57 6 14 3 6 33 26 477 Peak Tracking Total 16 | . 5 3 6 7 1 12 4 3 4 . 4 7 5 3 4 5 6 1 4 3 4 3 5 4 5 16 Tactical Retreats 49 | . 4 . 3 1 . 2 5 3 1 . 1 6 . . . . 4 . . . . . . 4 2 13 Traps | -11 -10 -10 -9 -9 -9 -9 -6 -6 -6 -6 -5 -5 -5 -5 -5 -4 -4 -4 -4 -4 -4 -4 -3 -3 -3 -3 ------- Run | Yrd Mat Min Mat Sto Rec Scr Fac Low Low Zio Pro Fac Upp Upp War Pro Fac Was Fac Upp Upp Zhi Pro Res Qua Frg Traps Triggered 35 | . 2 . . . . . 8 . . . . 8 . . . . 4 . 7 . . . . . . 6 Indirectly . | . . . . . . . . . . . . . . . . . . . . . . . . . . . Trap Hack Attempts . | . . . . . . . . . . . . . . . . . . . . . . . . . . . Triggered . | . . . . . . . . . . . . . . . . . . . . . . . . . . . Disarmed 5 | . . . . . . . . . . . . . . . . . 5 . . . . . . . . . Reprogrammed . | . . . . . . . . . . . . . . . . . . . . . . . . . . . Reused . | . . . . . . . . . . . . . . . . . . . . . . . . . . . Traps Extracted . | . . . . . . . . . . . . . . . . . . . . . . . . . . . Installed . | . . . . . . . . . . . . . . . . . . . . . . . . . . . Triggered . | . . . . . . . . . . . . . . . . . . . . . . . . . . . Machines | -11 -10 -10 -9 -9 -9 -9 -6 -6 -6 -6 -5 -5 -5 -5 -5 -4 -4 -4 -4 -4 -4 -4 -3 -3 -3 -3 ---------- Run | Yrd Mat Min Mat Sto Rec Scr Fac Low Low Zio Pro Fac Upp Upp War Pro Fac Was Fac Upp Upp Zhi Pro Res Qua Frg Machines Disabled 71 | . 1 1 3 2 . 2 5 . 1 . 1 3 1 . 1 . 1 . 3 . . 2 . 2 1 41 Max in Single Turn 4 | . 1 1 1 1 . 1 1 . 1 . 1 2 1 . 1 . 1 . 1 . . 1 . 1 1 4 Garrison Access 18 | . . . . 1 . . 2 . . . . 3 . . . . 2 . 4 . . . . 4 1 1 Machines Repaired . | . . . . . . . . . . . . . . . . . . . . . . . . . . . Machines Dismantled . | . . . . . . . . . . . . . . . . . . . . . . . . . . . Machines Sabotaged . | . . . . . . . . . . . . . . . . . . . . . . . . . . . Overloaded Fab Kills . | . . . . . . . . . . . . . . . . . . . . . . . . . . . Hacking | -11 -10 -10 -9 -9 -9 -9 -6 -6 -6 -6 -5 -5 -5 -5 -5 -4 -4 -4 -4 -4 -4 -4 -3 -3 -3 -3 --------- Run | Yrd Mat Min Mat Sto Rec Scr Fac Low Low Zio Pro Fac Upp Upp War Pro Fac Was Fac Upp Upp Zhi Pro Res Qua Frg Machines Accessed 201 | . 9 . 12 5 10 4 36 1 1 . . 22 2 3 8 . 21 . 21 2 . 9 1 20 9 5 Terminals 93 | . 7 . 10 4 6 . 13 1 . . . 10 . . . . 13 . 9 . . . 1 10 8 1 Fabricators 14 | . . . . . . . 5 . . . . 3 . . . . 1 . 3 . . . . 2 . . Repair Stations 9 | . . . 1 . . . 6 . . . . 1 . . . . . . 1 . . . . . . . Recycling Units 36 | . 2 . 1 . 4 . 8 . . . . 5 . . . . 5 . 4 . . . . 4 . 3 Scanalyzers 1 | . . . . . . . 1 . . . . . . . . . . . . . . . . . . . Garrison Access 19 | . . . . 1 . . 3 . . . . 3 . . . . 2 . 4 . . . . 4 1 1 Total Hacks 611 | . 28 . 32 13 22 26 86 4 1 . . 68 2 8 23 . 73 . 68 6 . 48 1 54 32 16 Successful 384 | . 13 . 15 6 14 26 40 4 1 . . 39 2 8 23 . 43 . 42 6 . 48 1 31 14 8 Failed 225 | . 15 . 17 7 8 . 46 . . . . 29 . . . . 29 . 25 . . . . 23 18 8 Catastrophic 34 | . 4 . 3 1 . . 5 . . . . 5 . . . . 8 . . . . . . 4 1 3 Database Lockouts 2 | . . . . . . . . . . . . . . . . . 1 . 1 . . . . . . . Manual 310 | . 27 . 27 11 21 . 34 . . 5 . 42 1 . . . 50 . 33 . . . . 30 21 8 Terminals 335 | . 25 . 29 9 18 . 36 4 . . . 46 . . . . 60 . 34 . . . 1 37 30 6 Fabricators 31 | . . . . . . . 7 . . . . 5 . . . . 3 . 12 . . . . 4 . . Repair Stations 37 | . . . 2 . . . 21 . . . . 4 . . . . . . 10 . . . . . . . Recycling Units 52 | . 3 . 1 . 4 . 12 . . . . 6 . . . . 7 . 5 . . . . 6 . 8 Scanalyzers 4 | . . . . . . . 4 . . . . . . . . . . . . . . . . . . . Garrison Access 38 | . . . . 4 . . 6 . . . . 7 . . . . 3 . 7 . . . . 7 2 2 Terminal Hacks 214 | . 2 . 3 4 1 26 9 4 1 . . 18 2 8 23 . 24 . 13 6 . 48 1 12 4 5 Record 94 | . . . . . . 19 . 4 . . . . . 6 15 . 1 . . 5 . 36 1 2 . 5 Part Schematic 11 | . . . . . . . . . . . . 2 . . . . 2 . 2 . . 4 . 1 . . Robot Analysis 14 | . . . . . . 6 1 . . . . . . . . . 2 . 1 . . 4 . . . . Prototype ID Bank 11 | . . . . . . . . . . . . . . . 6 . . . 1 . . 4 . . . . Open Door 8 | . . . . . . . . . 1 . . . 2 2 2 . . . . 1 . . . . . . Open DSF 1 | . . . . . . . . . . . . . . . . . 1 . . . . . . . . . Level Access Points 1 | . . . . . . . . . . . . . . . . . 1 . . . . . . . . . Branch Access Points 1 | . . . . 1 . . . . . . . . . . . . . . . . . . . . . . Emergency Access Points 1 | . . . . . . . . . . . . . . . . . 1 . . . . . . . . . Terminal Index 10 | . 1 . 1 1 1 . 1 . . . . 1 . . . . 1 . 2 . . . . 1 . . Fabricator Index 5 | . . . . . . . 1 . . . . 1 . . . . 1 . . . . . . 2 . . Recycling Unit Index 3 | . . . 1 . . . . . . . . . . . . . 1 . . . . . . 1 . . Alert Level 27 | . 1 . 1 1 . . 4 . . . . 8 . . . . 4 . 3 . . . . 4 1 . Unreport Threat 9 | . . . . 1 . . 1 . . . . 3 . . . . 1 . 2 . . . . 1 . . Locate Traps 2 | . . . . . . . . . . . . . . . . . 1 . . . . . . . 1 . Disarm Traps 1 | . . . . . . . . . . . . . . . . . 1 . . . . . . . . . Security Status 1 | . . . . . . . . . . . . 1 . . . . . . . . . . . . . . Patrol Status 1 | . . . . . . . 1 . . . . . . . . . . . . . . . . . . . Hauler Manifests 4 | . . . . . . . . . . . . 2 . . . . 2 . . . . . . . . . Registered Components 2 | . . . . . . . . . . . . . . . . . 1 . 1 . . . . . . . Registered Prototypes 2 | . . . . . . . . . . . . . . . . . 1 . 1 . . . . . . . Zone Layout 3 | . . . . . . . . . . . . . . . . . 1 . . . . . . . 2 . Proto ID Catalog 1 | . . . . . . 1 . . . . . . . . . . . . . . . . . . . . Protovariant Controls 1 | . . . . . . . . . . . . . . . . . 1 . . . . . . . . . Fabricator Hacks 17 | . . . . . . . 4 . . . . 1 . . . . 1 . 7 . . . . 4 . . Network Status 10 | . . . . . . . 3 . . . . 1 . . . . 1 . 3 . . . . 2 . . Load Schematic 3 | . . . . . . . . . . . . . . . . . . . 2 . . . . 1 . . Build 4 | . . . . . . . 1 . . . . . . . . . . . 2 . . . . 1 . . Repair Station Hacks 21 | . . . 2 . . . 8 . . . . 2 . . . . . . 9 . . . . . . . Scan Component 12 | . . . 1 . . . 5 . . . . 1 . . . . . . 5 . . . . . . . Repair 9 | . . . 1 . . . 3 . . . . 1 . . . . . . 4 . . . . . . . Recycling Unit Hacks 2 | . . . . . . . 1 . . . . . . . . . 1 . . . . . . . . . Report Inventory 2 | . . . . . . . 1 . . . . . . . . . 1 . . . . . . . . . Scanalyzer 2 | . . . . . . . 2 . . . . . . . . . . . . . . . . . . . Insert Component 1 | . . . . . . . 1 . . . . . . . . . . . . . . . . . . . Analyze 1 | . . . . . . . 1 . . . . . . . . . . . . . . . . . . . Garrison Access Hacks 18 | . . . . 1 . . 2 . . . . 3 . . . . 2 . 4 . . . . 4 1 1 Seal Access 18 | . . . . 1 . . 2 . . . . 3 . . . . 2 . 4 . . . . 4 1 1 Unauthorized Hacks 110 | . 11 . 10 1 13 . 14 . . . . 15 . . . . 15 . 9 . . . . 11 9 2 Terminals 76 | . 9 . 9 1 9 . 7 . . . . 10 . . . . 10 . 5 . . . . 7 9 . Assimilate 2 | . . . 1 . . . . . . . . 1 . . . . . . . . . . . . . . Botnet 29 | . 4 . 3 . 3 . 2 . . . . 4 . . . . 5 . 2 . . . . 2 4 . Skim 45 | . 5 . 5 1 6 . 5 . . . . 5 . . . . 5 . 3 . . . . 5 5 . Fabricators . | . . . . . . . . . . . . . . . . . . . . . . . . . . . Repair Stations . | . . . . . . . . . . . . . . . . . . . . . . . . . . . Recycling Units 34 | . 2 . 1 . 4 . 7 . . . . 5 . . . . 5 . 4 . . . . 4 . 2 Tunnel 7 | . 2 . 1 . 4 . . . . . . . . . . . . . . . . . . . . . Fedlink 27 | . . . . . . . 7 . . . . 5 . . . . 5 . 4 . . . . 4 . 2 Scanalyzers . | . . . . . . . . . . . . . . . . . . . . . . . . . . . Garrison Access . | . . . . . . . . . . . . . . . . . . . . . . . . . . . Data Cores Recovered 15 | . . . 1 . . . 1 . . . . 3 . . . . 2 . 2 . . . . 4 1 1 Used 8 | . . . 1 . . . 1 . . . . 1 . . . . 1 . . . . . . 3 1 . Hacking Detections 112 | . 6 . 10 3 4 . 27 . . . . 13 . . . . 12 . 13 . . . 1 11 9 3 Full Trace Events 19 | . 1 . . 1 1 . 7 . . . . 2 . . . . 2 . 2 . . . . 1 1 1 Feedback Events . | . . . . . . . . . . . . . . . . . . . . . . . . . . . Feedback Blocked . | . . . . . . . . . . . . . . . . . . . . . . . . . . . Robot Schematics Acquired 6 | . . . . . . . . . . 3 . . . . . . . . . . . . . . 1 2 Robots Built . | . . . . . . . . . . . . . . . . . . . . . . . . . . . Authchips . | . . . . . . . . . . . . . . . . . . . . . . . . . . . Time . | . . . . . . . . . . . . . . . . . . . . . . . . . . . Total Robot Build Rating . | . . . . . . . . . . . . . . . . . . . . . . . . . . . Part Schematics Acquired 35 | . . . . . . . . . . 13 . 2 . . . . 2 . 2 . . 4 . . 2 10 Parts Built 8 | . . . . . . . 2 . . . . . . . . . . . 4 . . . . 2 . . Authchips . | . . . . . . . . . . . . . . . . . . . . . . . . . . . Time 323 | . . . . . . . 106 . . . . . . . . . . . 100 . . . . 117 . . Total Part Build Rating 48 | . . . . . . . 12 . . . . . . . . . . . 22 . . . . 14 . . Parts Repaired 9 | . . . 1 . . . 3 . . . . 1 . . . . . . 4 . . . . . . . Time 389 | . . . 32 . . . 53 . . . . 44 . . . . . . 260 . . . . . . . Parts Recycled . | . . . . . . . . . . . . . . . . . . . . . . . . . . . Recycled Matter . | . . . . . . . . . . . . . . . . . . . . . . . . . . . Retrieved Matter . | . . . . . . . . . . . . . . . . . . . . . . . . . . . Retrieved Components . | . . . . . . . . . . . . . . . . . . . . . . . . . . . Parts Scanalyzed 1 | . . . . . . . 1 . . . . . . . . . . . . . . . . . . . Part Schematics Acquired . | . . . . . . . . . . . . . . . . . . . . . . . . . . . Parts Damaged . | . . . . . . . . . . . . . . . . . . . . . . . . . . . Bothacking | -11 -10 -10 -9 -9 -9 -9 -6 -6 -6 -6 -5 -5 -5 -5 -5 -4 -4 -4 -4 -4 -4 -4 -3 -3 -3 -3 ------------ Run | Yrd Mat Min Mat Sto Rec Scr Fac Low Low Zio Pro Fac Upp Upp War Pro Fac Was Fac Upp Upp Zhi Pro Res Qua Frg Used RIF Installer . | . . . . . . . . . . . . . . . . . . . . . . . . . . . Robots Hacked 3 | . . . . . . . . . . . . . . . . . 3 . . . . . . . . . Non-combat 3 | . . . . . . . . . . . . . . . . . 3 . . . . . . . . . Combat . | . . . . . . . . . . . . . . . . . . . . . . . . . . . Robot Hacks Applied 4 | . . . . . . . . . . . . . . . . . 4 . . . . . . . . . find_chute 4 | . . . . . . . . . . . . . . . . . 4 . . . . . . . . . Relay Couplers Released 2 | . . . . . . . . . . . . . . . . . . . 2 . . . . . . . Programmers 2 | . . . . . . . . . . . . . . . . . . . 2 . . . . . . . Fabnet Peak Effective % . | . . . . . . . . . . . . . . . . . . . . . . . . . . . Robots Rewired . | . . . . . . . . . . . . . . . . . . . . . . . . . . . Allies Hacked 1 | . . . . . . . . . . . . . . . . . . . 1 . . . . . . . Hacks Repelled . | . . . . . . . . . . . . . . . . . . . . . . . . . . . Allies | -11 -10 -10 -9 -9 -9 -9 -6 -6 -6 -6 -5 -5 -5 -5 -5 -4 -4 -4 -4 -4 -4 -4 -3 -3 -3 -3 -------- Run | Yrd Mat Min Mat Sto Rec Scr Fac Low Low Zio Pro Fac Upp Upp War Pro Fac Was Fac Upp Upp Zhi Pro Res Qua Frg Total Allies 34 | . . 2 1 10 . . . . . . . 1 . . . . . 20 . . . . . . . . Largest Group 20 | . . 2 1 10 . . . . . . . 1 . . . . . 20 18 . . . . . . . Highest-Rated Group 708 | . . 42 10 88 . . . . . . . 10 . . . . . 708 604 . . . . . . . Highest-Rated Ally 50 | . . 31 10 16 . . . . . . . 10 . . . . . 50 46 . . . . . . . Total Orders . | . . . . . . . . . . . . . . . . . . . . . . . . . . . Ally Attacks 207 | . . 19 . 83 . . . . . . . . . . . . . 10 95 . . . . . . . Total Damage 3320 | . . 296 . 821 . . . . . . . . . . . . . 321 1882 . . . . . . . Kills 34 | . . 6 . 11 . . . . . . . . . . . . . 1 16 . . . . . . . Allies Corrupted 4 | . . . 1 . . . . . . . . . . . . . . . 3 . . . . . . . Allies Melted 2 | . . . . . . 1 . . . . . . . . . . . . . . . . . . . 1 Intel | -11 -10 -10 -9 -9 -9 -9 -6 -6 -6 -6 -5 -5 -5 -5 -5 -4 -4 -4 -4 -4 -4 -4 -3 -3 -3 -3 ------- Run | Yrd Mat Min Mat Sto Rec Scr Fac Low Low Zio Pro Fac Upp Upp War Pro Fac Was Fac Upp Upp Zhi Pro Res Qua Frg Active Infowar (turns) 29186 | 17 1625 685 1991 486 854 1571 2860 351 398 288 525 1849 449 320 315 266 1496 345 4501 334 305 148 374 1855 599 4379 Optics 1908 | . 1 . . . . . . . . . . . . . . . . . . . . . . . . 1907 Sensors 23538 | . 72 685 1396 486 854 1571 2860 351 398 288 525 1833 449 320 315 266 1496 345 4429 334 305 148 374 1855 599 984 A.S.S. 3189 | . . . . . . . . . . . . . . . . . . . . . . . . . . 3189 IFF 2 | . . . . . . . 2 . . . . . . . . . . . . . . . . . . . Structural 25384 | . 957 685 1991 486 854 1569 2860 351 398 288 525 1849 449 320 315 266 1496 345 4501 334 305 148 374 1855 599 1264 Seismic 1569 | 17 1552 . . . . . . . . . . . . . . . . . . . . . . . . . Cloaking 29 | . . . . . . 29 . . . . . . . . . . . . . . . . . . . . Jamming 17816 | . . . . . . . 1831 351 398 288 525 1849 449 320 315 266 1496 345 4501 334 305 148 374 1855 599 1267 ECM 259 | . . . . . . 259 . . . . . . . . . . . . . . . . . . . . Robot Analysis Total 14 | . . . . . . 6 1 . . . . . . . . . 2 . 1 . . 4 . . . . Derelict Logs Recovered 16 | . . 1 . . . . . 3 2 2 2 . 3 1 . . . . . . 2 . . . . . Drone Launches . | . . . . . . . . . . . . . . . . . . . . . . . . . . . Drone Recoveries . | . . . . . . . . . . . . . . . . . . . . . . . . . . . Exploration | -11 -10 -10 -9 -9 -9 -9 -6 -6 -6 -6 -5 -5 -5 -5 -5 -4 -4 -4 -4 -4 -4 -4 -3 -3 -3 -3 ------------- Run | Yrd Mat Min Mat Sto Rec Scr Fac Low Low Zio Pro Fac Upp Upp War Pro Fac Was Fac Upp Upp Zhi Pro Res Qua Frg Turns Passed 29329 | 48 1625 685 2050 486 854 1571 2860 351 398 288 525 1849 449 320 315 266 1496 345 4549 334 305 148 374 1855 599 4384 Spaces Moved 42652 | 42 1144 493 1312 505 860 2475 4391 981 1234 1103 1214 3723 1054 909 935 677 3291 399 4297 653 697 359 960 2768 1012 5164 Core 26 | 20 . . . . 3 . 3 . . . . . . . . . . . . . . . . . . . Treads . | . . . . . . . . . . . . . . . . . . . . . . . . . . . Legs 2 | . . . . . . . 2 . . . . . . . . . . . . . . . . . . . Wheels 1934 | 22 1144 493 275 . . . . . . . . . . . . . . . . . . . . . . . Hover 20114 | . . . . . 347 2475 3412 . . . . . . . . . . . 2267 653 697 359 960 2768 1012 5164 Flight 20576 | . . . 1037 505 510 . 974 981 1234 1103 1214 3723 1054 909 935 677 3291 399 2030 . . . . . . . Fastest Speed 7 | 50 90 90 29 28 28 40 20 20 20 20 20 7 20 20 24 12 12 24 18 20 20 20 23 15 15 28 Average Speed 34 | 81 90 90 47 28 35 43 37 20 20 20 20 20 20 21 24 23 24 63 55 20 20 21 23 26 34 35 Slowest Speed 260 | 150 90 90 260 31 150 44 150 20 20 100 100 28 20 93 24 24 97 97 130 20 96 23 23 35 35 92 Overloaded Moves 56 | . . . . . . . . . . . . 8 . . . 11 18 . 1 . . . . 7 11 . Propulsion Burnouts . | . . . . . . . . . . . . . . . . . . . . . . . . . . . Robots Hopped 40 | . . . 11 . 2 . 1 . . . 1 9 . . . . 8 1 7 . . . . . . . Potential Cave-ins 38 | . . . . . . . . . . . . . 5 . . . . . 5 . . . . . . 28 Cave-ins Triggered 3 | . . . . . . . . . . . . . . . . . 1 . . . . . . . . 2 Teleports 1 | . . . . . . . . . . . . . . . . . . . . . . 1 . . . . Exploration Rate (%) 79 | 3 100 79 86 52 99 95 83 91 94 88 97 75 90 93 84 84 59 95 62 64 74 86 92 58 90 77 Regions Visited 26 Branch Regions 18 Pre-discovered Areas 27 | . 2 . 4 . 5 3 4 2 . 1 . . . 1 . . . . . . . 3 . 2 . . Known Exits Taken 23 | . 1 1 1 1 1 1 1 1 1 1 1 1 1 1 1 1 . . 1 1 1 1 1 1 1 . Unknown Exits Taken 1 | 1 . . . . . . . . . . . . . . . . . . . . . . . . . . Scrap Searched 40 | . . . . . . 6 . 6 2 2 2 . 5 1 . 4 . . . 3 4 . 5 . . . Spaces Dug 422 | . . . 13 4 3 4 66 2 31 . 3 62 2 1 . . 76 . 85 . . . . 32 7 31 Terrain Destroyed 1574 | . 9 15 24 4 3 4 90 14 31 . 16 126 100 51 2 96 76 . 92 22 93 . 64 49 7 586 Melee 341 | . . . 10 4 3 4 66 2 2 . 3 62 2 1 . . 76 . 55 . . . . 32 7 12 Projectile 5 | . . . 4 . . . . . . . . . . . . . . . . . . . . . . 1 AOE 1228 | . 9 15 10 . . . 24 12 29 . 13 64 98 50 2 96 . . 37 22 93 . 64 17 . 573 Terrain Rammed . | . . . . . . . . . . . . . . . . . . . . . . . . . . . Walls Destroyed . | . . . . . . . . . . . . . . . . . . . . . . . . . . . Machines Disabled . | . . . . . . . . . . . . . . . . . . . . . . . . . . . Actions | -11 -10 -10 -9 -9 -9 -9 -6 -6 -6 -6 -5 -5 -5 -5 -5 -4 -4 -4 -4 -4 -4 -4 -3 -3 -3 -3 --------- Run | Yrd Mat Min Mat Sto Rec Scr Fac Low Low Zio Pro Fac Upp Upp War Pro Fac Was Fac Upp Upp Zhi Pro Res Qua Frg Total 54593 | 52 1589 682 2516 768 1366 2953 5374 1096 1331 1160 1419 4607 1211 999 1006 738 3717 479 6177 815 814 411 1068 3760 1196 7289 Wait 7474 | . 315 142 990 166 455 363 552 25 16 47 100 469 10 22 43 3 132 48 1439 91 46 7 26 816 83 1068 Move 42546 | 41 1143 492 1289 504 855 2474 4388 980 1233 1102 1211 3705 1053 908 934 676 3275 396 4282 652 696 358 959 2767 1011 5162 Hop 36 | . . . 11 . 2 . 1 . . . 1 7 . . . . 8 1 5 . . . . . . . Pick Up 321 | 4 8 2 11 8 3 31 34 7 6 . 3 40 10 6 . 1 10 7 43 2 6 6 4 11 6 52 Fast Attach 108 | 3 6 . 10 3 5 1 2 . 2 5 . 5 . 3 7 . 4 1 22 . . . . 3 3 23 Attach 127 | 3 3 . 11 4 . 17 19 . . . . 17 4 . 1 . 5 1 22 . 3 3 2 2 1 9 Detach 8 | . . . 2 . . . 2 . . . . . . . 1 . 2 . . . . . . . . 1 Swap 180 | . 2 3 5 3 1 14 21 2 8 . 2 29 7 2 1 5 8 2 24 2 1 10 4 10 . 14 Drop 380 | . 10 2 16 8 9 24 33 7 2 5 3 56 10 7 4 1 15 7 53 2 5 6 2 16 8 69 Fire 578 | 1 76 26 92 . . . 2 2 5 1 4 12 11 6 5 10 9 . 3 6 12 . 10 3 . 282 Melee 1490 | . . . 39 49 28 16 222 33 38 . 62 164 58 23 9 21 156 7 152 23 20 12 18 94 42 204 Ram 7 | . 1 . . . . . 3 . . . . . . . . . . . . . . . . . . 3 Kick . | . . . . . . . . . . . . . . . . . . . . . . . . . . . Crush . | . . . . . . . . . . . . . . . . . . . . . . . . . . . Escape Stasis 147 | . . . . . . . 8 . . . . 52 . . . . 14 . 47 . . 4 . . . 22 Rewire 8 | . . . . . . . . . . . . . . . . . . . . . 8 . . . . . Trap . | . . . . . . . . . . . . . . . . . . . . . . . . . . . Miscellaneous 1183 | . 25 15 40 23 8 13 87 40 21 . 33 51 48 22 1 21 79 9 85 37 17 5 43 38 42 380 Route ------- -11/Scrapyard -10/Materials (discovered 6 exits: *Mat x3 / *Min x2 / [*Sub]) -10/Mines (discovered 2 exits: *Mat x2) -9/Materials (discovered 5 exits: *Mat x3 / [*Min] / *Sto) -9/Storage (discovered 2 exits: *Mat / *Rec) -9/Recycling (discovered 2 exits: [*Fac] / *Scr) -9/Scraptown (discovered 2 exits: *Fac x2) -6/Factory (discovered 4 exits: *Fac x2 / *Low x2) -6/Lower Caves -6/Lower Caves (discovered 2 exits: *Fac / *Zio) -6/Zion (discovered 2 exits: *Dee / *Pro) -5/Proximity Caves -5/Factory (discovered 6 exits: *Fac x4 / *Upp x2) -5/Upper Caves -5/Upper Caves (discovered 2 exits: *Fac / *War) -5/Warlord -4/Proximity Caves -4/Factory (discovered 8 exits: *Res x4 / Upp x2 / Ext x2) -4/Waste -4/Factory (discovered 5 exits: *Res x2 / *Upp / *Ext x2) -4/Upper Caves -4/Upper Caves (discovered 2 exits: *Res / *Zhi) -4/Zhirov -3/Proximity Caves -3/Research (discovered 6 exits: *Res x3 / Arm / *Qua x2) -3/Quarantine (discovered 3 exits: *Res / *Sec / *Frg) -3/Protoforge 0bPrime History --------- Turn | Location | Event 1 | -11/Scrapyard | Upgraded with Propulsion slot (x1) 1 | -11/Scrapyard | Upgraded with Utility slot (x1) 1 | -11/Scrapyard | Upgraded with Weapon slot (x1) 20 | -11/Scrapyard | Discovered new exit (range 16) 49 | -11/Scrapyard | Entered Materials 98 | -10/Materials | Discovered new exit (range 6) 300 | -10/Materials | Build established: Mutant 367 | -10/Materials | Discovered new exit (range 4) 504 | -10/Materials | Discovered new exit (range 9) 639 | -10/Materials | Discovered new exit (range 11) 698 | -10/Materials | Reached level 2 713 | -10/Materials | Upgraded with Utility slot (x1) 953 | -10/Materials | Discovered new exit (range 16) 1012 | -10/Materials | Core integrity fell below 50% 1223 | -10/Materials | Reached level 3 1340 | -10/Materials | Upgraded with Utility slot (x1) 1408 | -10/Materials | Identified exit to Mines 1458 | -10/Materials | Identified exit to Materials 1537 | -10/Materials | Discovered exit to Materials (range 15) 1674 | -10/Materials | Entered Mines 1787 | -10/Mines | Received a Rocket Launcher from a helpful Derelict 1815 | -10/Mines | Discovered exit to Materials (range 8) 1888 | -10/Mines | Build established: Skirmisher 1895 | -10/Mines | Learned Materials garrison access intel 2090 | -10/Mines | Discovered exit to Materials (range 16) 2099 | -10/Mines | Reached level 4 2147 | -10/Mines | Assisted by bots powering up and referring to "LRC-V3" 2294 | -10/Mines | Assembled infested the area 2359 | -10/Mines | Entered Materials 2361 | -9/Materials | Reached level 5 2526 | -9/Materials | Upgraded with Power slot (x1) 2526 | -9/Materials | Upgraded with Propulsion slot (x2) 2526 | -9/Materials | Upgraded with Utility slot (x1) 2539 | -9/Materials | Discovered new exit (range 7) 2725 | -9/Materials | Discovered new exit (range 14) 2729 | -9/Materials | Identified exit to Materials 2923 | -9/Materials | Reached level 6 3211 | -9/Materials | Discovered exit to Materials (range 10) 3304 | -9/Materials | Build established: Scout 3455 | -9/Materials | Learned location of Mines (-9) 3559 | -9/Materials | Learned Storage stockpile data 3642 | -9/Materials | Learned Storage interactive machine intel 3696 | -9/Materials | Learned Storage emergency access door positions 3960 | -9/Materials | Repaired VTOL Module 3980 | -9/Materials | Discovered new exit (range 5) 3982 | -9/Materials | Identified exit to Storage 4079 | -9/Materials | Reached level 7 4361 | -9/Materials | Reached level 8 4409 | -9/Materials | Entered Storage 4413 | -9/Storage | Loaded intel: 19 interactive machine locations 4518 | -9/Storage | Identified exit to Recycling 4530 | -9/Storage | Assisted by bots powering up and referring to "LRC-V3" 4571 | -9/Storage | Reached level 9 4612 | -9/Storage | Garrison activated, responded to threat 4741 | -9/Storage | Used back door to open Recycling access 4782 | -9/Storage | Upgraded with Power slot (x1) 4782 | -9/Storage | Upgraded with Propulsion slot (x1) 4825 | -9/Storage | Build established: Commander-Scout 4895 | -9/Storage | Entered Recycling 4897 | -9/Recycling | Reached level 10 4903 | -9/Recycling | Lost 6 allies 5020 | -9/Recycling | Scanned before Scraplab entrance 5166 | -9/Recycling | Discovered new exit (range 16) 5178 | -9/Recycling | Build established: Scout 5242 | -9/Recycling | Learned Materials trap positions 5310 | -9/Recycling | Identified exit to Scraptown 5411 | -9/Recycling | Learned Materials terminal intel 5444 | -9/Recycling | Learned 2 Storage zone layouts 5468 | -9/Recycling | Learned location of 3 exits from Materials 5501 | -9/Recycling | Learned 4 Materials zone layouts 5546 | -9/Recycling | Learned Storage trap positions 5599 | -9/Recycling | Learned 2 Storage zone layouts 5735 | -9/Recycling | Entered Scraplab 5749 | -9/Recycling | Entered Scraptown 5749 | -9/Scraptown | System corruption cleaned by C-Scrubber 5826 | -9/Scraptown | Heard Great Nut preacher, LISTEN AND RECITE! 5980 | -9/Scraptown | Discovered new exit (range 7) 5983 | -9/Scraptown | Identified exit to Factory 6040 | -9/Scraptown | Visited Comm Corps 6071 | -9/Scraptown | Visited Shadow of the Wyrm 6079 | -9/Scraptown | Visited Fellowship of the Rings 6107 | -9/Scraptown | Visited TADAMA 6231 | -9/Scraptown | Visited The Evicted 6249 | -9/Scraptown | Visited SPCMW 6261 | -9/Scraptown | Visited Assassins FH 6281 | -9/Scraptown | Visited UFD Registry 6293 | -9/Scraptown | Registered with UFD as "Steamrunner" 6320 | -9/Scraptown | Visited Curators Association 6340 | -9/Scraptown | Visited Science Guys 6372 | -9/Scraptown | Visited Analyses Database 6405 | -9/Scraptown | Visited Scrapoid Pod Storage 6407 | -9/Scraptown | Found Scrapoid Pod 6507 | -9/Scraptown | Visited Cartography Club 6529 | -9/Scraptown | Found Surveybot 17 Chip 6581 | -9/Scraptown | Learned location of Warlord (-5) 6581 | -9/Scraptown | Learned location of Cetus (-4) 6581 | -9/Scraptown | Learned 12 Factory zone layouts 6581 | -9/Scraptown | Learned 4 Storage zone layouts 6581 | -9/Scraptown | Learned 8 Lower Caves zone layouts 6581 | -9/Scraptown | Learned 8 Upper Caves zone layouts 6581 | -9/Scraptown | Learned 20 Upper Caves zone layouts 6581 | -9/Scraptown | Learned 12 Proximity Caves zone layouts 6581 | -9/Scraptown | Learned 16 Proximity Caves zone layouts 6581 | -9/Scraptown | Learned Research emergency access door positions 6581 | -9/Scraptown | Learned location of 1 exit from Research 6581 | -9/Scraptown | Learned location of 2 exits from Research 6581 | -9/Scraptown | Learned location of 3 exits from Proximity Caves 6599 | -9/Scraptown | Found Deep Structural Scanner 6644 | -9/Scraptown | Found Scrap Suit 6693 | -9/Scraptown | Visited Junk Repository 6723 | -9/Scraptown | Visited Infowarlord's Domain 6734 | -9/Scraptown | Visited A0-MCA Data Center 6737 | -9/Scraptown | Given a B- rating by A0-MCA 6740 | -9/Scraptown | Found A0-MCA's Component Scanner 6765 | -9/Scraptown | Upgraded with Utility slot (x1) 6773 | -9/Scraptown | Met Optimus 6773 | -9/Scraptown | Accepted into 0bPrime 6808 | -9/Scraptown | Found Exp. Signal Interpreter 6874 | -9/Scraptown | Upgraded with Propulsion slot (x1) 7173 | -9/Scraptown | Civil war broke out across Scraptown 7176 | -9/Scraptown | Found Expert System 7320 | -9/Scraptown | Entered Factory 7321 | -6/Factory | Identified exit to Factory 7322 | -6/Factory | Reached level 11 7550 | -6/Factory | Discovered new exit (range 13) 7661 | -6/Factory | Reached level 12 7693 | -6/Factory | Core integrity fell below 50% 7765 | -6/Factory | Loaded intel: 8 recycling unit locations 7771 | -6/Factory | Learned location of Protoforge (-3) 7780 | -6/Factory | Upgraded with Utility slot (x1) 8074 | -6/Factory | Reached level 13 8345 | -6/Factory | Fabricated Imp. Transmission Jammer (x2) 8347 | -6/Factory | Upgraded with Utility slot (x1) 8398 | -6/Factory | Discovered new exit (range 14) 8405 | -6/Factory | Identified exit to Lower Caves 8536 | -6/Factory | Core integrity fell below 20% 8626 | -6/Factory | Learned Extension emergency access door positions 8669 | -6/Factory | Learned Hub_04(d) stockpile data 8719 | -6/Factory | Reached level 14 8725 | -6/Factory | Learned location of Zion (-6) 8739 | -6/Factory | Learned 12 Factory zone layouts 8763 | -6/Factory | Learned location of Proximity Caves (-4) 8823 | -6/Factory | Repaired Imp. Hover Unit 8870 | -6/Factory | Build established: Scavenger-Ninja 9122 | -6/Factory | Spotted B-75 Beast 9921 | -6/Factory | Reached level 15 9933 | -6/Factory | Repaired Imp. Light Armor Plating 10046 | -6/Factory | Repaired Cld. Ion Engine 10120 | -6/Factory | First assault squad dispatched 10157 | -6/Factory | Allied Derelicts emerged from ambush trap array 10180 | -6/Factory | Entered Lower Caves 10238 | -6/Lower Caves | Spotted B-75 Beast 10317 | -6/Lower Caves | Discovered new exit (range 17) 10320 | -6/Lower Caves | Identified exit to Lower Caves 10394 | -6/Lower Caves | Reached level 16 10394 | -6/Lower Caves | Destroyed B-75 Beast 10398 | -6/Lower Caves | Learned Factory emergency access door positions 10437 | -6/Lower Caves | Attracted the attention of an 0b10 base 10527 | -6/Lower Caves | Learned location of Armory (-3) 10527 | -6/Lower Caves | Learned Factory emergency access door positions 10527 | -6/Lower Caves | Learned Research security intel 10530 | -6/Lower Caves | Destroyed 7 combat bots 10531 | -6/Lower Caves | Entered another Lower Caves area 10531 | -6/Lower Caves | Discovered exit to Factory (range 9) 10536 | -6/Lower Caves | Reached level 17 10629 | -6/Lower Caves | Attracted the attention of an 0b10 checkpoint 10669 | -6/Lower Caves | Encountered a Warlord checkpoint 10717 | -6/Lower Caves | Attacked by a delusional Derelict stockpiling Unaware 10791 | -6/Lower Caves | Upgraded with Weapon slot (x2) 10830 | -6/Lower Caves | Discovered new exit (range 12) 10833 | -6/Lower Caves | Identified exit to Zion 10929 | -6/Lower Caves | Entered Zion 10931 | -6/Zion | Reached level 18 10942 | -6/Zion | Acquired unknown access codes intercepted by a Zionite 10945 | -6/Zion | Discovered new exit (range 15) 10949 | -6/Zion | Identified exit to Proximity Caves 10957 | -6/Zion | Found Storm Laser 10995 | -6/Zion | System corruption cleaned by Quarantine Array 11007 | -6/Zion | Given the Hacking Drone Bay 11061 | -6/Zion | Opened final containment barrier to the Deep Caves 11063 | -6/Zion | Discovered new exit (range 11) 11064 | -6/Zion | Saw the warning signs outside the Deep Caves entrance 11065 | -6/Zion | Identified exit to Deep Caves 11077 | -6/Zion | Learned location of Extension (-4) 11119 | -6/Zion | Turned away by Imprinter 11137 | -6/Zion | Given A8's code to call for help 11217 | -6/Zion | Entered Proximity Caves 11218 | -5/Proximity Caves | Learned Factory stockpile data 11220 | -5/Proximity Caves | Learned location of 2 exits from Factory 11301 | -5/Proximity Caves | Reached level 19 11370 | -5/Proximity Caves | Attracted the attention of an 0b10 base 11490 | -5/Proximity Caves | Destroyed 14 combat bots 11515 | -5/Proximity Caves | Reached level 20 11742 | -5/Proximity Caves | Entered Factory 11743 | -5/Factory | Identified exit to Upper Caves 11744 | -5/Factory | Identified exit to Factory 11744 | -5/Factory | Reached level 21 11853 | -5/Factory | Upgraded with Propulsion slot (x1) 12121 | -5/Factory | Loaded intel: 8 recycling unit locations 12155 | -5/Factory | Found Powered Armor 12178 | -5/Factory | Build established: Hacker-Ninja 12681 | -5/Factory | Spotted B-75 Beast 12761 | -5/Factory | Reached level 22 12875 | -5/Factory | Cargo convoy interrupted 12888 | -5/Factory | Learned 4 Testing zone layouts 13008 | -5/Factory | Learned 8 Quarantine zone layouts 13034 | -5/Factory | Found Mni. Smartbomb Launcher 13082 | -5/Factory | Found Enh. Gamma Bomb Array 13085 | -5/Factory | Found PL-3XN's Ring of Power 13105 | -5/Factory | Learned Research trap positions 13170 | -5/Factory | Learned Testing trap positions 13357 | -5/Factory | Core integrity fell below 50% 13377 | -5/Factory | Repaired Mni. Smartbomb Launcher? 13542 | -5/Factory | First assault squad dispatched 13591 | -5/Factory | Entered Upper Caves 13592 | -5/Upper Caves | Identified exit to Upper Caves 13697 | -5/Upper Caves | Learned Factory emergency access door positions 13711 | -5/Upper Caves | Attracted the attention of an 0b10 checkpoint 13742 | -5/Upper Caves | Acquired the password to a Derelict Tinkerer's latest research 13752 | -5/Upper Caves | Found Molecular Deconstructor 13825 | -5/Upper Caves | Reached level 23 13845 | -5/Upper Caves | Upgraded with Utility slot (x1) 13846 | -5/Upper Caves | Destroyed 9 combat bots 13918 | -5/Upper Caves | Caught by Unaware searching for contraband prototypes 14036 | -5/Upper Caves | Learned location of 1 exit from Upper Caves 14040 | -5/Upper Caves | Entered another Upper Caves area 14041 | -5/Upper Caves | Identified exit to Warlord 14054 | -5/Upper Caves | Discovered exit to Factory (range 13) 14064 | -5/Upper Caves | Entered an active Warlord outpost 14067 | -5/Upper Caves | Learned Armory security intel 14067 | -5/Upper Caves | Learned Armory terminal intel 14088 | -5/Upper Caves | Attracted the attention of an 0b10 outpost 14220 | -5/Upper Caves | Attracted the attention of an 0b10 checkpoint 14242 | -5/Upper Caves | Learned Factory emergency access door positions 14360 | -5/Upper Caves | Entered Warlord 14369 | -5/Warlord | System corruption cleaned by Quarantine Array 14482 | -5/Warlord | Warlord's base attacked by MAIN.C 14491 | -5/Warlord | Found Vortex Driver 14493 | -5/Warlord | Found Vortex Rail 14554 | -5/Warlord | Rebuked by Warlord 14580 | -5/Warlord | Opened side exit 14582 | -5/Warlord | Spotted B-75 Beast 14660 | -5/Warlord | Destroyed B-86 Titan 14672 | -5/Warlord | Discovered new exit (range 15) 14674 | -5/Warlord | Identified exit to Proximity Caves 14675 | -5/Warlord | Entered Proximity Caves 14677 | -4/Proximity Caves | Reached level 24 14843 | -4/Proximity Caves | Attracted the attention of an 0b10 checkpoint 14873 | -4/Proximity Caves | Ambushed by research squad 14911 | -4/Proximity Caves | Destroyed 11 combat bots 14941 | -4/Proximity Caves | Entered Factory 14942 | -4/Factory | Identified exit to Upper Caves 14942 | -4/Factory | Identified exit to Extension 14943 | -4/Factory | Reached level 25 14943 | -4/Factory | Upgraded with Utility slot (x1) 15034 | -4/Factory | Identified exit to Research 15209 | -4/Factory | Identified exit to DSF 15341 | -4/Factory | Learned location of 1 exit from Proximity Caves 15385 | -4/Factory | Learned location of 1 exit from Proximity Caves 15418 | -4/Factory | Learned location of 1 exit from Armory 15440 | -4/Factory | Learned Testing trap positions 15456 | -4/Factory | Loaded intel: 8 recycling unit locations 15470 | -4/Factory | Learned Quarantine stockpile data 15508 | -4/Factory | Learned Research fabricator intel 15568 | -4/Factory | Core integrity fell below 50% 15817 | -4/Factory | Central database locked down 15992 | -4/Factory | Crushed by falling debris 16377 | -4/Factory | Spotted B-86 Titan 16437 | -4/Factory | Manually triggered Chute Trap 16437 | -4/Factory | Sucked down chute 16437 | -4/Factory | Entered Waste 16438 | -4/Waste | Joined by Warlord forces that had cleared the area 16546 | -4/Waste | Discovered new exit (range 12) 16687 | -4/Waste | A Compactor rumbled back to life 16687 | -4/Waste | Spotted C-40 Crusher 16688 | -4/Waste | Allies destroyed C-40 Crusher 16747 | -4/Waste | Identified exit to Factory 16782 | -4/Waste | Entered Factory 16782 | -4/Factory | Accompanied by 18 allies 16806 | -4/Factory | Build established: Hacker-Gladiator 17148 | -4/Factory | Reached level 26 17451 | -4/Factory | Build established: Hacker-Ninja 17536 | -4/Factory | Loaded intel: 8 recycling unit locations 17861 | -4/Factory | Build established: Hacker-Gladiator 17884 | -4/Factory | Fabricated Graphene Brace (x2) 17962 | -4/Factory | Discovered exit to Upper Caves (range 12) 18161 | -4/Factory | Lost 7 allies 18254 | -4/Factory | Lost 5 allies 19116 | -4/Factory | Discovered exit to Research (range 13) 19575 | -4/Factory | System corruption reached 10% 19827 | -4/Factory | Repaired Linear Gravjet? 19922 | -4/Factory | Repaired Broken Adv. Reaction Control System? 19989 | -4/Factory | Repaired Imp. Phase Shifter? 20052 | -4/Factory | Repaired Antigrav System 20074 | -4/Factory | Build established: Hacker-Ninja 20749 | -4/Factory | Reached level 27 21111 | -4/Factory | Central database locked down 21208 | -4/Factory | Fabricated Powered Armor? 21282 | -4/Factory | First assault squad dispatched 21331 | -4/Factory | Entered Upper Caves 21335 | -4/Upper Caves | Encountered a Warlord checkpoint 21473 | -4/Upper Caves | Entered an active Warlord outpost 21475 | -4/Upper Caves | Learned Extension garrison access intel 21475 | -4/Upper Caves | Learned Armory stockpile data 21562 | -4/Upper Caves | Attracted the attention of an 0b10 checkpoint 21644 | -4/Upper Caves | Discovered new exit (range 16) 21648 | -4/Upper Caves | Identified exit to Upper Caves 21665 | -4/Upper Caves | Entered another Upper Caves area 21677 | -4/Upper Caves | Discovered exit to Research (range 17) 21709 | -4/Upper Caves | Learned Research machine intel 21809 | -4/Upper Caves | Destroyed 9 combat bots 21901 | -4/Upper Caves | Discovered new exit (range 13) 21904 | -4/Upper Caves | Identified exit to Zhirov 21912 | -4/Upper Caves | Destroyed 8 combat bots 21932 | -4/Upper Caves | Entered a destroyed Warlord outpost 21952 | -4/Upper Caves | Learned Research emergency access door positions 21970 | -4/Upper Caves | Entered Zhirov 21970 | -4/Zhirov | Discovered new exit (range 3) 21975 | -4/Zhirov | Met Zhirov 21981 | -4/Zhirov | Learned location of Testing (-2) 21981 | -4/Zhirov | Learned location of Command (-1) 21986 | -4/Zhirov | Zhirov requested help retrieving the SGEMP Prototype 21994 | -4/Zhirov | Found Alien Artifact 21995 | -4/Zhirov | Identified Integrated Dissipator 21995 | -4/Zhirov | Installed Integrated Dissipator, increased core heat dissipation (+20) 22057 | -4/Zhirov | Cloak Generator disabled 22057 | -4/Zhirov | Attacked by Zhirov 22068 | -4/Zhirov | Enhanced Grunts warped into view 22074 | -4/Zhirov | Destroyed Zhirov 22084 | -4/Zhirov | Zhirov detonated his lab 22085 | -4/Zhirov | Found Alien Artifact 22086 | -4/Zhirov | Identified Transdimensional Reconstructor 22086 | -4/Zhirov | Warped through subspace 22115 | -4/Zhirov | Lost 7 allies 22117 | -4/Zhirov | Identified exit to Proximity Caves 22118 | -4/Zhirov | Entered Proximity Caves 22192 | -3/Proximity Caves | Reached level 28 22247 | -3/Proximity Caves | Found DCF Scrap (10 items) 22319 | -3/Proximity Caves | Spotted B-86 Titan 22330 | -3/Proximity Caves | Destroyed B-86 Titan 22408 | -3/Proximity Caves | Attracted the attention of an 0b10 checkpoint 22492 | -3/Proximity Caves | Entered Research 22493 | -3/Research | Identified exit to Armory 22494 | -3/Research | Identified exit to Research 22494 | -3/Research | Identified exit to Quarantine 22495 | -3/Research | Loaded intel: 82 trap records 22498 | -3/Research | Loaded intel: 130 machine locations 22499 | -3/Research | Loaded intel: 4 fabricator locations 22786 | -3/Research | Reached level 29 22910 | -3/Research | Discovered exit to Research (range 5) 22952 | -3/Research | Loaded intel: 5 recycling unit locations 23673 | -3/Research | Learned Access garrison access intel 23801 | -3/Research | Learned Research trap positions 24007 | -3/Research | Fabricated Adv. Actuator Array? 24347 | -3/Research | Entered Quarantine 24348 | -3/Quarantine | Identified exit to Protoforge 24548 | -3/Quarantine | Discovered exit to Research (range 15) 24586 | -3/Quarantine | Learned Access emergency access door positions 24636 | -3/Quarantine | Found Alien Artifact 24636 | -3/Quarantine | Identified Core Reset Matrix 24636 | -3/Quarantine | Used Core Reset Matrix 24640 | -3/Quarantine | Detected hypermatrix surge 24640 | -3/Quarantine | Sensed 2 artifacts in vicinity 24663 | -3/Quarantine | Reached level 30 24666 | -3/Quarantine | Upgraded with Utility slot (x1) 24699 | -3/Quarantine | Learned Research security intel 24738 | -3/Quarantine | Learned 4 Research zone layouts 24765 | -3/Quarantine | Learned location of 1 exit from Armory 24787 | -3/Quarantine | Identified exit to Section 7 24805 | -3/Quarantine | Learned location of 1 exit from Research 24835 | -3/Quarantine | Learned Research security intel 24859 | -3/Quarantine | Found Subatomic Replicator 24875 | -3/Quarantine | Learned Access scanalyzer intel 24898 | -3/Quarantine | Spotted Fortress 24946 | -3/Quarantine | Entered Protoforge 24947 | -3/Protoforge | Sensed 2 artifacts in vicinity 25065 | -3/Protoforge | Spotted Hotshot 25065 | -3/Protoforge | Spotted Hotshot 25102 | -3/Protoforge | Spotted Hotshot 25103 | -3/Protoforge | Spotted Hotshot 25128 | -3/Protoforge | Destroyed Hotshot 25332 | -3/Protoforge | Destroyed 7 combat bots 25369 | -3/Protoforge | Found Cep. XC Strikerail 25381 | -3/Protoforge | Spotted Decapitator 25382 | -3/Protoforge | Spotted Decapitator 25382 | -3/Protoforge | Spotted Decapitator 25382 | -3/Protoforge | Spotted Decapitator 25383 | -3/Protoforge | Spotted Decapitator 25386 | -3/Protoforge | Destroyed Decapitator 25386 | -3/Protoforge | Destroyed Decapitator 25388 | -3/Protoforge | Destroyed Decapitator 25397 | -3/Protoforge | Destroyed Decapitator 25401 | -3/Protoforge | Destroyed Decapitator 25436 | -3/Protoforge | Found Cep. Concussive Dispersal Blaster 25445 | -3/Protoforge | Found Exp. Trap Extractor 25464 | -3/Protoforge | Found Cep. Chromion Battery 25526 | -3/Protoforge | Spotted Decapitator 25526 | -3/Protoforge | Spotted V397-m 25558 | -3/Protoforge | Found Faulty Cep. Smart ZDS 25563 | -3/Protoforge | Spotted V984-a 25563 | -3/Protoforge | Spotted V699-e 25569 | -3/Protoforge | Found Faulty Cep. Smart ZDS 25586 | -3/Protoforge | Found Crosscalibrator 25644 | -3/Protoforge | Spotted Immortal 25645 | -3/Protoforge | Spotted Decapitator 25645 | -3/Protoforge | Spotted Decapitator 25645 | -3/Protoforge | Spotted Decapitator 25645 | -3/Protoforge | Spotted Decapitator 25647 | -3/Protoforge | Destroyed Decapitator 25650 | -3/Protoforge | Destroyed Decapitator 25653 | -3/Protoforge | Destroyed Decapitator 25655 | -3/Protoforge | Destroyed Decapitator 25696 | -3/Protoforge | First assault squad dispatched 25728 | -3/Protoforge | Found Cep. Gyrokinetic System 25729 | -3/Protoforge | Found Cep. Combat Aerolev Unit 25747 | -3/Protoforge | Spotted V552-b 25750 | -3/Protoforge | Superfortress began startup sequence 25774 | -3/Protoforge | Destroyed V552-b 25777 | -3/Protoforge | Found Cep. Combat Aerolev Unit 25840 | -3/Protoforge | Destroyed Immortal 25843 | -3/Protoforge | Found Exp. Jetlance 25865 | -3/Protoforge | Found Femtoactuators 25919 | -3/Protoforge | Spotted V184-m 25931 | -3/Protoforge | Found Exp. Active Sensor Suite 26010 | -3/Protoforge | Spotted Decapitator 26010 | -3/Protoforge | Spotted Decapitator 26014 | -3/Protoforge | Destroyed Decapitator 26015 | -3/Protoforge | Destroyed Decapitator 26030 | -3/Protoforge | Used Subatomic Replicator to replicate Protomatter-74 26051 | -3/Protoforge | Found Exp. Jetlance 26057 | -3/Protoforge | Found Exp. Jetlance 26082 | -3/Protoforge | Spotted Immortal 26083 | -3/Protoforge | Spotted Immortal 26084 | -3/Protoforge | Spotted V144-h 26085 | -3/Protoforge | Spotted V047-o 26085 | -3/Protoforge | Spotted V456-q 26091 | -3/Protoforge | Found Cep. Matter Streamer 26093 | -3/Protoforge | Found Cep. NT7 Matterbank 26164 | -3/Protoforge | Spotted Decapitator 26164 | -3/Protoforge | Spotted Decapitator 26180 | -3/Protoforge | UFD initiated attack on Protoforge 26180 | -3/Protoforge | Loaded intel: 3 recycling unit locations 26216 | -3/Protoforge | Optimus greeted in Protoforge 26217 | -3/Protoforge | Spotted EXE-6 26229 | -3/Protoforge | Spotted Overlord 26234 | -3/Protoforge | Destroyed Overlord 26255 | -3/Protoforge | Lost 7 allies 26277 | -3/Protoforge | Destroyed Decapitator 26295 | -3/Protoforge | Reached level 31 26341 | -3/Protoforge | Spotted AP7-3 26341 | -3/Protoforge | Spotted AP7-3 26346 | -3/Protoforge | System corruption reached 10% 26389 | -3/Protoforge | Lost 6 allies 26392 | -3/Protoforge | Destroyed Hotshot 26393 | -3/Protoforge | Spotted Hotshot 26400 | -3/Protoforge | Destroyed Hotshot 26404 | -3/Protoforge | Spotted Executioner 26404 | -3/Protoforge | Destroyed Hotshot 26406 | -3/Protoforge | Destroyed Executioner 26410 | -3/Protoforge | Destroyed Hotshot 26412 | -3/Protoforge | Spotted Executioner 26413 | -3/Protoforge | Spotted Executioner 26416 | -3/Protoforge | Spotted Striker 26461 | -3/Protoforge | Destroyed 32 combat bots 26468 | -3/Protoforge | Spotted Striker 26468 | -3/Protoforge | Spotted Striker 26484 | -3/Protoforge | Destroyed Striker 26487 | -3/Protoforge | Spotted Executioner 26504 | -3/Protoforge | Spotted Executioner 26513 | -3/Protoforge | Destroyed Executioner 26516 | -3/Protoforge | Build established: Hacker-Scout 26516 | -3/Protoforge | Spotted Striker 26520 | -3/Protoforge | Spotted Executioner 26532 | -3/Protoforge | Destroyed Executioner 26552 | -3/Protoforge | Spotted Striker 26552 | -3/Protoforge | Destroyed Striker 26553 | -3/Protoforge | Spotted Striker 26555 | -3/Protoforge | UFD reported confirmed Drillbomb installation 26560 | -3/Protoforge | Destroyed Striker 26562 | -3/Protoforge | Lost 6 allies 26593 | -3/Protoforge | Spotted Striker 26594 | -3/Protoforge | Destroyed Striker 26594 | -3/Protoforge | Destroyed Executioner 26604 | -3/Protoforge | Crushed by falling debris 26626 | -3/Protoforge | Destroyed 27 combat bots 26642 | -3/Protoforge | Spotted Striker 26657 | -3/Protoforge | Spotted Striker 26681 | -3/Protoforge | Murdered 3 allies 26693 | -3/Protoforge | Spotted Striker 26693 | -3/Protoforge | Spotted Executioner 26693 | -3/Protoforge | Spotted Striker 26698 | -3/Protoforge | Destroyed Executioner 26700 | -3/Protoforge | Destroyed Striker 26724 | -3/Protoforge | Destroyed Executioner 26727 | -3/Protoforge | Spotted Executioner 26745 | -3/Protoforge | Destroyed 18 combat bots 26745 | -3/Protoforge | Spotted Striker 26748 | -3/Protoforge | Spotted Striker 26749 | -3/Protoforge | Lost 6 allies 26761 | -3/Protoforge | UFD reported confirmed Drillbomb installation 26789 | -3/Protoforge | Spotted Executioner 26797 | -3/Protoforge | Spotted Executioner 26801 | -3/Protoforge | Destroyed Executioner 26862 | -3/Protoforge | Destroyed 13 combat bots 26897 | -3/Protoforge | Spotted Striker 26899 | -3/Protoforge | Spotted Executioner 26902 | -3/Protoforge | Destroyed Executioner 26904 | -3/Protoforge | Spotted Executioner 26905 | -3/Protoforge | Spotted Executioner 26906 | -3/Protoforge | Destroyed Striker 26908 | -3/Protoforge | Destroyed Executioner 26910 | -3/Protoforge | Destroyed Executioner 26934 | -3/Protoforge | Reached level 32 26947 | -3/Protoforge | Lost 5 allies 26957 | -3/Protoforge | Destroyed 16 combat bots 27047 | -3/Protoforge | UFD reported confirmed Drillbomb installation 27099 | -3/Protoforge | Spotted Executioner 27101 | -3/Protoforge | Spotted Striker 27102 | -3/Protoforge | Spotted Striker 27117 | -3/Protoforge | UFD reported confirmed Drillbomb installation 27164 | -3/Protoforge | Destroyed Striker 27179 | -3/Protoforge | Spotted Striker 27181 | -3/Protoforge | Spotted Striker 27183 | -3/Protoforge | Destroyed Striker 27193 | -3/Protoforge | Destroyed Executioner 27193 | -3/Protoforge | Destroyed Executioner 27196 | -3/Protoforge | Destroyed Striker 27197 | -3/Protoforge | P-80 Master assimilated allied 03F40-D 27211 | -3/Protoforge | Destroyed Executioner 27215 | -3/Protoforge | Spotted Executioner 27218 | -3/Protoforge | Lost 5 allies 27222 | -3/Protoforge | Destroyed Executioner 27224 | -3/Protoforge | Destroyed Striker 27245 | -3/Protoforge | Destroyed 20 combat bots 27329 | -3/Protoforge | UFD reported confirmed Drillbomb installation 27409 | -3/Protoforge | Spotted Executioner 27415 | -3/Protoforge | Upgraded with Utility slot (x1) 27416 | -3/Protoforge | Found 0bPrime Scrap Suit 27424 | -3/Protoforge | Spotted Striker 27426 | -3/Protoforge | Spotted Executioner 27436 | -3/Protoforge | Destroyed Executioner 27441 | -3/Protoforge | Destroyed Striker 27464 | -3/Protoforge | Destroyed 23 combat bots 27479 | -3/Protoforge | Spotted Striker 27481 | -3/Protoforge | Spotted Executioner 27482 | -3/Protoforge | Spotted Striker 27482 | -3/Protoforge | Spotted Executioner 27487 | -3/Protoforge | Spotted Striker 27503 | -3/Protoforge | Destroyed Striker 27520 | -3/Protoforge | Lost 9 allies 27522 | -3/Protoforge | Destroyed Executioner 27554 | -3/Protoforge | Destroyed 12 combat bots 27587 | -3/Protoforge | UFD reported confirmed Drillbomb installation 27591 | -3/Protoforge | Spotted Executioner 27591 | -3/Protoforge | Spotted Striker 27596 | -3/Protoforge | Spotted Striker 27599 | -3/Protoforge | Destroyed Striker 27623 | -3/Protoforge | Destroyed Executioner 27644 | -3/Protoforge | Destroyed 10 combat bots 27683 | -3/Protoforge | Lost 4 allies 27774 | -3/Protoforge | UFD reported confirmed Drillbomb installation 27814 | -3/Protoforge | Destroyed Striker 27847 | -3/Protoforge | Destroyed 12 combat bots 27875 | -3/Protoforge | Spotted Executioner 27877 | -3/Protoforge | Spotted Striker 27884 | -3/Protoforge | Destroyed Executioner 27886 | -3/Protoforge | Destroyed Striker 27890 | -3/Protoforge | Spotted Executioner 27893 | -3/Protoforge | Spotted Executioner 27893 | -3/Protoforge | Spotted Executioner 27896 | -3/Protoforge | Destroyed Executioner 27896 | -3/Protoforge | Spotted Executioner 27898 | -3/Protoforge | Destroyed Executioner 27900 | -3/Protoforge | Spotted Striker 27902 | -3/Protoforge | Destroyed Executioner 27903 | -3/Protoforge | Spotted Striker 27906 | -3/Protoforge | Destroyed Striker 27908 | -3/Protoforge | Destroyed Striker 27923 | -3/Protoforge | Lost 3 allies 27926 | -3/Protoforge | Destroyed Executioner 27947 | -3/Protoforge | Destroyed 29 combat bots 27947 | -3/Protoforge | Spotted Striker 27985 | -3/Protoforge | Core integrity fell below 50% 28003 | -3/Protoforge | UFD reported confirmed Drillbomb installation 28134 | -3/Protoforge | Crushed by falling debris 28144 | -3/Protoforge | Spotted Striker 28146 | -3/Protoforge | Spotted Striker 28149 | -3/Protoforge | Destroyed 8 combat bots 28151 | -3/Protoforge | Destroyed Striker 28165 | -3/Protoforge | Destroyed Striker 28173 | -3/Protoforge | Spotted Striker 28173 | -3/Protoforge | Spotted Executioner 28174 | -3/Protoforge | Spotted Executioner 28174 | -3/Protoforge | Spotted Striker 28201 | -3/Protoforge | Destroyed Executioner 28209 | -3/Protoforge | Destroyed Executioner 28226 | -3/Protoforge | Lost 7 allies 28238 | -3/Protoforge | Destroyed 22 combat bots 28282 | -3/Protoforge | Spotted Striker 28283 | -3/Protoforge | Spotted Striker 28292 | -3/Protoforge | Spotted Executioner 28292 | -3/Protoforge | Spotted Striker 28300 | -3/Protoforge | Destroyed Striker 28302 | -3/Protoforge | Destroyed Executioner 28327 | -3/Protoforge | Destroyed 15 combat bots 28329 | -3/Protoforge | Lost 3 allies 28351 | -3/Protoforge | Spotted Executioner 28352 | -3/Protoforge | Spotted Executioner 28352 | -3/Protoforge | Spotted Striker 28355 | -3/Protoforge | Spotted Executioner 28411 | -3/Protoforge | Destroyed Executioner 28413 | -3/Protoforge | Destroyed Executioner 28417 | -3/Protoforge | Destroyed Executioner 28452 | -3/Protoforge | Spotted Striker 28455 | -3/Protoforge | Spotted Striker 28459 | -3/Protoforge | Spotted Executioner 28460 | -3/Protoforge | Spotted Executioner 28479 | -3/Protoforge | Destroyed 15 combat bots 28493 | -3/Protoforge | Lost 3 allies 28508 | -3/Protoforge | Spotted Striker 28515 | -3/Protoforge | Reached level 33 28521 | -3/Protoforge | Spotted Striker 28525 | -3/Protoforge | Spotted Executioner 28529 | -3/Protoforge | Destroyed Striker 28531 | -3/Protoforge | Destroyed Executioner 28532 | -3/Protoforge | Spotted Executioner 28535 | -3/Protoforge | Destroyed Executioner 28543 | -3/Protoforge | Destroyed Executioner 28565 | -3/Protoforge | Lost 5 allies 28566 | -3/Protoforge | Destroyed 19 combat bots 28575 | -3/Protoforge | Spotted Executioner 28606 | -3/Protoforge | Spotted Executioner 28607 | -3/Protoforge | Spotted Executioner 28609 | -3/Protoforge | Destroyed Executioner 28611 | -3/Protoforge | Destroyed Executioner 28613 | -3/Protoforge | Spotted Executioner 28615 | -3/Protoforge | Destroyed Executioner 28619 | -3/Protoforge | Spotted Executioner 28620 | -3/Protoforge | Spotted Striker 28627 | -3/Protoforge | Destroyed Striker 28629 | -3/Protoforge | Destroyed Executioner 28650 | -3/Protoforge | Destroyed 15 combat bots 28651 | -3/Protoforge | Spotted Striker 28652 | -3/Protoforge | Spotted Striker 28653 | -3/Protoforge | Destroyed Striker 28656 | -3/Protoforge | Destroyed Striker 28670 | -3/Protoforge | Spotted Striker 28672 | -3/Protoforge | Spotted Striker 28675 | -3/Protoforge | Destroyed Striker 28681 | -3/Protoforge | Destroyed Striker 28723 | -3/Protoforge | Destroyed 15 combat bots 28737 | -3/Protoforge | Spotted Striker 28739 | -3/Protoforge | Spotted Striker 28744 | -3/Protoforge | Spotted Executioner 28746 | -3/Protoforge | Spotted Executioner 28747 | -3/Protoforge | Destroyed Striker 28753 | -3/Protoforge | Destroyed Executioner 28757 | -3/Protoforge | Destroyed Executioner 28760 | -3/Protoforge | Spotted Executioner 28761 | -3/Protoforge | Destroyed Executioner 28766 | -3/Protoforge | Destroyed Striker 28769 | -3/Protoforge | Spotted Executioner 28770 | -3/Protoforge | Spotted Hotshot 28770 | -3/Protoforge | Spotted Hotshot 28782 | -3/Protoforge | Destroyed Hotshot 28792 | -3/Protoforge | Destroyed Executioner 28810 | -3/Protoforge | Lost 4 allies 28813 | -3/Protoforge | Destroyed 21 combat bots 28830 | -3/Protoforge | Spotted Striker 28830 | -3/Protoforge | Spotted Striker 28830 | -3/Protoforge | Spotted Striker 28830 | -3/Protoforge | Spotted Executioner 28842 | -3/Protoforge | Destroyed Striker 28846 | -3/Protoforge | Destroyed Executioner 28852 | -3/Protoforge | Destroyed Striker 28854 | -3/Protoforge | Destroyed Striker 28858 | -3/Protoforge | Spotted Striker 28863 | -3/Protoforge | Spotted Striker 28867 | -3/Protoforge | Lost 3 allies 28873 | -3/Protoforge | Destroyed Striker 28873 | -3/Protoforge | Destroyed Striker 28894 | -3/Protoforge | Destroyed 19 combat bots 28935 | -3/Protoforge | Spotted Striker 28937 | -3/Protoforge | Spotted Striker 28954 | -3/Protoforge | Spotted Executioner 28955 | -3/Protoforge | Spotted Executioner 28958 | -3/Protoforge | Destroyed Striker 28963 | -3/Protoforge | Destroyed Executioner 28966 | -3/Protoforge | Destroyed Executioner 28969 | -3/Protoforge | Spotted Executioner 28969 | -3/Protoforge | Spotted Executioner 28973 | -3/Protoforge | Destroyed Executioner 28977 | -3/Protoforge | Destroyed Executioner 28993 | -3/Protoforge | Lost 4 allies 29000 | -3/Protoforge | Destroyed 16 combat bots 29032 | -3/Protoforge | Spotted Striker 29032 | -3/Protoforge | Spotted Striker 29054 | -3/Protoforge | Spotted Executioner 29055 | -3/Protoforge | Spotted Executioner 29073 | -3/Protoforge | Spotted Executioner 29074 | -3/Protoforge | Destroyed Executioner 29074 | -3/Protoforge | Spotted Executioner 29095 | -3/Protoforge | Destroyed Executioner 29109 | -3/Protoforge | Lost 3 allies 29116 | -3/Protoforge | Destroyed 10 combat bots 29130 | -3/Protoforge | Spotted Executioner 29130 | -3/Protoforge | Spotted Executioner 29130 | -3/Protoforge | Spotted Striker 29130 | -3/Protoforge | Spotted Executioner 29131 | -3/Protoforge | P-80 Master assimilated allied 72-3Z7(E) 29133 | -3/Protoforge | Destroyed Striker 29133 | -3/Protoforge | Destroyed Executioner 29135 | -3/Protoforge | Destroyed Executioner 29140 | -3/Protoforge | Destroyed Executioner 29155 | -3/Protoforge | Spotted Striker 29155 | -3/Protoforge | Spotted Striker 29156 | -3/Protoforge | UFD reported confirmed Drillbomb installation 29176 | -3/Protoforge | Destroyed 15 combat bots 29192 | -3/Protoforge | Lost 3 allies 29230 | -3/Protoforge | UFD reported confirmed Drillbomb installation 29231 | -3/Protoforge | UFD began Drillbomb countdown 29331 | *** | Defending 0bPrime! Last Messages --------------- 29293_ System corrupted: Matter fused (-7). 29294_ Acquired 6 matter. 29294_ Acquired 1 matter. 29315_ 5C-QZW(E): "Warlord is going to be so jealous!" 29317_ System corrupted: Heat flow error (+148). 29321_ 0bP_NET: T-10 until detonation, we won! 29322_ 0bP_NET: Not to be a pessimist, but you all realize we still have to deal with that big fortress thing, yeah? 29323_ 0bP_NET: All while quickly harvesting the forge for new prototypes. 29324_ 0bP_NET: And the imminent need to use that advantage to take full control of 0b1... 29325_ 0bP_NET: Tall orders all around! 29326_ 0bP_NET: Your pep talk needs some work. 29327_ 0bP_NET: Shut your pi-hole, I'm just being a realist. 29328_ 0bP_NET: Things are about to get real, indeed. T-3! 29329_ 0bP_NET: First dibs on the next iteration of our Scrapsuit! 29330_ Forge Plexus deploys N-04 Retriever. 29330_ 0bP_NET: Ha, who wants more upgrades to that old thing, the proto-powered Scrap Engine is where it's at. [Achievement: Rambo] Map ----- +----------------------------------------------------+ | # "" " """""""""""""""""""""""""""% % | | # "" """""""""""""""""""""""""""""% % | | # "" """"""""""""""""""""""""""""" | | # " s """"""""""""""""""""""""""""" % | | # " """""""""""""""""""""""""""""j % | | # """ """"""""""""""""""""""""""""" % | | # " "" """"""""""""""""""""""""""""" | | # """ " """"""""""""""""""""""""""""" | | # " """ """"" """"""""""""""""""""""""""""" " | | # "" " """"""""""""""""""""""""""""" " | | # " EE """"""""""""""""""""""""""" "" | | # %""""""""""""""""""""""""""" "s | | # """"""" "" """"""""""""""""""""""""""" "" | | # """ " " j """""""""""""""""""""""""j " | | # " " j""""""""""""""""""""""" "" | | # "" %E""""""""""""""""""""" | | # "" "" "" """"""""""""""""""" s " | | # "" "" "j"% SS""""""""""""""""" s "" " | | # "" """ "" SS """"""""""""""" "j " | | # " " sj E % """"""""" "j | | # " "" """ %SS % %E "" "" | | # " " """ "" " s SS % | | # " """ sj n %% " m | | # "" " ss " """ " | | # " "" " """ " """ "" " | | # " " @ != [" | | # " " " """ " "j """ | | # "" " " "% " = " "" "" | | # " "" " """" " "" | | # "" "" " """"" "" """ " " | | # "" " " " " """" | | # "" "" % " | | # " "" % """""""""" """ | | # "" " "" """""" """ | | # """ " " """""""""" " "% | | ######## #######################################+ | | ???????####??????????????""""""""######"""""#"" | | ?????????????????????????####################" | | ?????????????????????????##################"" | | ???????????????????????????????????????####"" | | ???????????????????????????????????????####"" | | ???????????????????????????????????????####"Y | | ???????????????????????????????????????####"" | | ???????????????????????????????????????####"" | | ???????????????????????????????????????####"" | | ???????????????????????????????????????######" | | ???????????????????????????????????????######"" | | ???????????????????????????????????????########""" | | ???????????????????????????????????????######"#""" | | ?????????????????????????????????????????####"#### | +----------------------------------------------------+ Best States ------------- Heat Dissipation 117 Energy Generation 75 Energy Capacity 1160 Matter Stores 1050 Matter Capacity 1050 Sight Range 23 Robot Scan Range 30 Terrain Scan Density 10 ECM Strength 1 Jamming Range 16 Cloak Strength 2 Armor Coverage 400 Melee Speed Boost 50 Phase Shifting 15 Evasion (%) 87 Recoil Reduction 2 Offensive Hacking 20 Defensive Hacking 20 Item Schematics ----------------- Exp. Power Amplifier | -3/Protoforge | Archive Adv. Gravity Neutralizer | -3/Protoforge | Archive Imp. Thermal Defense Suite | -3/Protoforge | Archive Hellfire Missile Launcher | -3/Protoforge | Archive Helical Railgun | -3/Protoforge | Archive Prc. Matter Filter | -3/Protoforge | Archive Diametric Drive | -3/Protoforge | Archive Vibroblade | -3/Protoforge | Archive Thermal Defense Suite | -3/Protoforge | Archive Cld. Antigrav System | -3/Protoforge | Archive Robot Schematics ------------------ O-32 Director | -3/Protoforge | Archive R-10 Processor | -3/Protoforge | Archive Fabricated ------------ Imp. Transmission Jammer | x2 | -6/Factory | Preloaded Graphene Brace | x2 | -4/Factory Powered Armor | x2 | -4/Factory Adv. Actuator Array | x2 | -3/Research Repaired ---------- VTOL Module | 48% | -9/Materials Imp. Hover Unit | 60% | -6/Factory Imp. Light Armor Plating | 32% | -6/Factory Cld. Ion Engine | 64% | -6/Factory Mni. Smartbomb Launcher | 25% | -5/Factory Linear Gravjet | 29% | -4/Factory Adv. Reaction Control System | 26% | -4/Factory | Broken Imp. Phase Shifter | 73% | -4/Factory Antigrav System | 70% | -4/Factory Alien Tech Used ----------------- Integrated Dissipator Transdimensional Reconstructor Core Reset Matrix Subatomic Replicator Achievements -------------- Exposed Killing Spree Rambo Challenges ------------ None RPGLIKE | -11 -10 -10 -9 -9 -9 -9 -6 -6 -6 -6 -5 -5 -5 -5 -5 -4 -4 -4 -4 -4 -4 -4 -3 -3 -3 -3 --------- Run | Yrd Mat Min Mat Sto Rec Scr Fac Low Low Zio Pro Fac Upp Upp War Pro Fac Was Fac Upp Upp Zhi Pro Res Qua Frg Levels Raised 32 | . 2 1 4 1 1 . 5 1 1 1 2 2 1 . . 1 1 . 2 . . . 1 1 1 3 XP Earned 51893 | 3000 3125 2139 5414 2540 843 304 7165 1700 1953 421 3708 3059 919 394 389 1607 1602 71 1819 242 421 105 897 1699 1113 5244 XP Spent 51000 | 3000 1900 . 4950 3200 . 3400 5900 . 3150 . . 7200 3100 . . . 2900 . 3300 . . . . . 3200 5800 Upgrades 71 | 6 2 . 11 3 . 2 5 . 3 . . 18 3 . . . 1 . 7 . . . . . 1 9 Power Slot 2 | . . . 1 1 . . . . . . . . . . . . . . . . . . . . . . Propulsion Slot 6 | 1 . . 2 1 . 1 . . . . . 1 . . . . . . . . . . . . . . Utility Slot 11 | 1 2 . 1 . . 1 2 . . . . . 1 . . . 1 . . . . . . . 1 1 Weapon Slot 3 | 1 . . . . . . . . 2 . . . . . . . . . . . . . . . . . Core Integrity 8 | . . . . . . . . . . . . 8 . . . . . . . . . . . . . . Heat Dissipation 12 | . . . 5 . . . . . . . . 2 . . . . . . 5 . . . . . . . Energy Generation 2 | . . . . . . . 1 . . . . . . . . . . . 1 . . . . . . . Mass Support 4 | . . . 2 . . . 1 . . . . . . . . . . . 1 . . . . . . . Inventory Capacity 5 | 3 . . . 1 . . . . 1 . . . . . . . . . . . . . . . . . Sensor Range 5 | . . . . . . . . . . . . . . . . . . . . . . . . . . 5 Melee Accuracy 2 | . . . . . . . . . . . . . 2 . . . . . . . . . . . . . Hack Attack % 4 | . . . . . . . 1 . . . . 3 . . . . . . . . . . . . . . Hack Defense % 4 | . . . . . . . . . . . . 4 . . . . . . . . . . . . . . EX Damage % 3 | . . . . . . . . . . . . . . . . . . . . . . . . . . 3 Protomatter Created 7498 | . 296 13 329 45 51 60 453 277 465 . 446 401 309 392 . 273 436 186 256 294 231 39 438 282 269 1257 Integrity Restored 24532 | . 486 260 813 472 153 230 1891 791 385 . 631 1091 946 437 3 402 1683 172 1811 763 396 68 917 728 832 8171 Core 19354 | . 460 163 629 310 16 197 1716 594 266 . 474 915 726 337 3 294 1334 118 1557 566 396 1 712 590 643 6337 Parts 5178 | . 26 97 184 162 137 33 175 197 119 . 157 176 220 100 . 108 349 54 254 197 . 67 205 138 189 1834 Protomatter Decayed 9872 | . 4 42 56 . 1 2820 . 5 78 . 207 342 64 35 . 34 71 140 248 7 43 . 15 39 7 5614 Game ------ Seed MetaVisualProcessor Manual? 0 Play Time 08:15:12 Cumulative 131.0 hours Start 2025.07.24 @ 01:19:38 End 2025.07.26 @ 15:05:52 Sessions 39 Manual Loads 0 Difficulty Rogue Special Mode Winter2019/RPGLIKE Game No. 42 Rogue 40 Adventurer 2 Explorer 0 Win Type 9 Total 11 Types 1/1/2/1/1/1/1/1/1/1 Lore% 47 Gallery% 72 Achievement% 64 Wizard Run 0 Options --------- Layout 0 ASCII 0 Keyboard 0 Movement Mouse Keybinds 1 Fullscreen 2 Font 24/Smallcaps Map View 76x50 Zoom Use 0% Tactical HUD 1 Map Filters NONE Filters NONE Steam 1 RUN: 1038611e-c0d2-46e5-a8c3-0e22aff2f747